{"text_format":"1","workbook":"xlsx","n_sheets":2,"sheets":["Sheet1","型名"],"not_rendered":{"charts":0,"images":0,"macros":1,"external_links":0,"defined_names":2,"comments":1,"pivot_tables":0},"unopened":[],"bounds":{"document_bytes":16777216,"sheet_cells":100000,"rows_first":2000,"rows_last":500,"rows_between":2000,"halvings":0,"cell_chars":16384,"cell_head_chars":4096},"cells_cut":0,"cells_raw":0,"read":"whole","date_system":"1900"}

{"sheet":"Sheet1","index":0,"n_rows":35,"n_cols":16,"rows_kept":35,"cut":false,"hidden":false,"merged":[[34,3,34,14],[25,6,25,15],[27,3,32,11],[27,13,27,15],[28,13,30,13],[28,14,30,15],[31,13,32,13],[31,14,32,15],[20,4,20,14],[21,4,21,14],[22,6,22,15],[24,4,24,14],[1,2,1,14],[15,12,15,14],[17,4,17,14],[18,4,18,14],[19,4,19,8],[19,10,19,14],[3,2,13,14]]}
[]
[null,null,"【COLMINA Storeのお客様専用】　月額サブスクリプション　ｅＳｐｏｔ ユーザ登録票"]
[]
[null,null,"この度は、建設業向け月額サブスクリプションeSpotの事前お申込み、誠にありがとうございます。\nCOLMINA StoreからeSpotへの契約切替を行っていただくために本ユーザ登録票が必要となります。\n必要事項をご記入いただき、以下のお問い合わせ窓口にご提出をお願いいたします。\nまた、契約窓口は富士通グループ販売パートナーの都築電気株式会社となります。別途、都築電気株式会社より本ユーザ登録票に記載のご担当者様宛にご連絡を差し上げますので、書面による契約手続きを行っていただきますようお願いいたします。\nなお、お客様情報につきましては、当社サービス以外の目的で使用することはございません。\n\n　　■お問い合せ窓口■\n　　　富士通Ｊａｐａｎ株式会社　ＦＣＥＮＡ担当\n       サポート対応時間：月～金 9:30～12:00　13:00～17:00\n　　　E-Mail　： fcena-info@cs.jp.fujitsu.com"]
[]
[]
[]
[]
[]
[]
[]
[]
[]
[]
[]
[null,null,"１）申請区分",null,"登録",null,null,null,null,null,null,"申込日","年　　月　　日"]
[null,null,"２）お客様情報（窓口責任者情報）"]
[null,null,null,"会社名"]
[null,null,null,"責任者所属"]
[null,null,null,"責任者氏名",null,null,null,null,null,"E-mail",null,null,null,null,null,"※"]
[null,null,null,"住所","〒　　　-"]
[null,null,null,"電話番号"]
[null,null,null,null,null,null,"※　本サービス開始のご案内のｅＳｐｏｔＩＤとパスワードを送付いたします。\n　　　 携帯電話のメールアドレスを登録する場合は、「ml.jp.fujitsu.com」ドメインからのメール受信許可設定が必要な場合が\n　　　 あります。\n　　　 操作方法については、お客様がお使いの携帯電話提供元のサポートホームページまたはサポートへ確認をお願いいたします。"]
[]
[null,null,null,"連絡欄"]
[]
[]
[null,null,null,"【個人情報の取扱いについて】\n・送信いただいたお客様の個人情報につきましては、当社にて厳重に管理し、お問い合わせに対するご回答、資料の送付に使用させていただくものとし、他の目的には一切使用いたしません。\n・お客様が個人情報を提供するか否かは、お客様の任意で決定してください。但し、当社からお客様にご回答するにあたり、必要な個人情報のご提供をいただけない場合、お客様からのお問い合わせに対するご回答はいたしかねますのでご了承下さい。\n・お客様自身の個人情報の照会、訂正、削除につきましては、上記のお問い合わせ窓口までお知らせ願います。",null,null,null,null,null,null,null,null,null,"弊社記入欄"]
[null,null,null,null,null,null,null,null,null,null,null,null,null,"受付日："]
[]
[]
[null,null,null,null,null,null,null,null,null,null,null,null,null,"オーダ番号："]
[]
[]
[null,null,null,"Copyright 2010-2025 FUJITSU LIMITED　　　　　　　　　　　　　　　　　　　　　　　　　　　　　　　　　　　　　　　　　　　　　　　2025年 6月　　第1.0版"]

{"sheet":"型名","index":1,"n_rows":250,"n_cols":17,"rows_kept":250,"cut":false,"hidden":true,"merged":[[88,12,89,12],[90,12,91,12],[71,12,73,12],[74,12,75,12],[90,3,91,3],[88,3,89,3]]}
[null,"提供形態","業務","商品概要","基本\nオプション","公開区分","販売\n区分","型名","商品名","商品名結合","価格（月額）","提供形態","備考","販売開始","パートナ\n仕切基準\n価格","パートナ\n仕切率","パートナ\n仕切価格"]
[null,"SaaS","会計","発売記念キャンペーン","基本","一般公開","【販売終了】　","SVS002750","ＧＬＯＶＩＡ　ｓｍａｒｔ　会計　きらら　業務アプリケーション利用サービス　コンパクトプラン（１ＩＤ）（キャンペーン）",{"$f":"CONCATENATE(G2,I2)","v":"【販売終了】　ＧＬＯＶＩＡ　ｓｍａｒｔ　会計　きらら　業務アプリケーション利用サービス　コンパクトプラン（１ＩＤ）（キャンペーン）"},9800,"月額","・利用可能日：5日/週\n・利用時間：13:00～17:00\n・1ユーザまで\n※Q/Aなし（別途オプション）","2011/03/31\n販売停止",1307,0.75,{"$f":"ROUNDDOWN(O2*P2,-1)","v":980}]
[null,"SaaS","会計","発売記念キャンペーン","オプション","一般公開","【販売終了】　","SVS002751","ＧＬＯＶＩＡ　ｓｍａｒｔ　会計　きらら　業務アプリケーション利用サービス　Ｑ／Ａオプション（コンパクト用）（キャンペーン）",{"$f":"CONCATENATE(G3,I3)","v":"【販売終了】　ＧＬＯＶＩＡ　ｓｍａｒｔ　会計　きらら　業務アプリケーション利用サービス　Ｑ／Ａオプション（コンパクト用）（キャンペーン）"},10000,"月額","・24回まで/年\n※コンパクトプラン用\n","2011/03/31\n販売停止",1334,0.75,1000]
[null,"SaaS","会計","発売記念キャンペーン","基本","一般公開","【販売終了】　","SVS002752","ＧＬＯＶＩＡ　ｓｍａｒｔ　会計　きらら　業務アプリケーション利用サービス　ベーシックプラン（１ＩＤ）（キャンペーン）","【販売終了】　ＧＬＯＶＩＡ　ｓｍａｒｔ　会計　きらら　業務アプリケーション利用サービス　ベーシックプラン（１ＩＤ）（キャンペーン）",35000,"月額","・利用可能日：5日/週\n・利用時間：9:00～17:00\n※Q/Aあり（60回/年まで）","2011/03/31\n販売停止",4667,0.75,3500]
[null,"SaaS","会計","発売記念キャンペーン","オプション","一般公開","【販売終了】　","SVS002753","ＧＬＯＶＩＡ　ｓｍａｒｔ　会計　きらら　業務アプリケーション利用サービス　利用者追加（１ＩＤ）オプション（キャンペーン）","【販売終了】　ＧＬＯＶＩＡ　ｓｍａｒｔ　会計　きらら　業務アプリケーション利用サービス　利用者追加（１ＩＤ）オプション（キャンペーン）",15000,"月額","※ベーシックプラン用（基本ID＋6ID=7IDまで）","2011/03/31\n販売停止",2000,0.75,1500]
[null,"SaaS","会計","発売記念キャンペーン","基本","一般公開","【販売終了】　","SVS002754","ＧＬＯＶＩＡ　ｓｍａｒｔ　会計　きらら　業務アプリケーション利用サービス　プレミアムプラン（３ＩＤ）（キャンペーン）","【販売終了】　ＧＬＯＶＩＡ　ｓｍａｒｔ　会計　きらら　業務アプリケーション利用サービス　プレミアムプラン（３ＩＤ）（キャンペーン）",80000,"月額","・利用可能日：毎日\n・利用時間：9:00～24:00\n・リモートスポット支援（2回/年まで）\n※Q/Aあり（60回/年まで）","2011/03/31\n販売停止",10667,0.75,8000]
[null,"SaaS","会計","発売記念キャンペーン","オプション","一般公開","【販売終了】　","SVS002755","ＧＬＯＶＩＡ　ｓｍａｒｔ　会計　きらら　業務アプリケーション利用サービス　利用者追加（１ＩＤ）オプション（キャンペーン）","【販売終了】　ＧＬＯＶＩＡ　ｓｍａｒｔ　会計　きらら　業務アプリケーション利用サービス　利用者追加（１ＩＤ）オプション（キャンペーン）",15000,"月額","※プレミアムプラン用（基本ID＋4ID=7IDまで）","2011/03/31\n販売停止",2000,0.75,1500]
[null,"SaaS","会計","モニターキャンペーン","基本","一般公開","【販売終了】　","SVS002770","ＧＬＯＶＩＡ　ｓｍａｒｔ　会計　きらら　業務アプリケーション利用サービス　コンパクトプラン（１ＩＤ）（モニター）","【販売終了】　ＧＬＯＶＩＡ　ｓｍａｒｔ　会計　きらら　業務アプリケーション利用サービス　コンパクトプラン（１ＩＤ）（モニター）",9800,"月額","・利用可能日：毎日\n・利用時間：7:00～24:00\n・1ユーザまで\n※Q/Aなし（別途オプション）","2011/03/31\n販売停止",1307,0.75,980]
[null,"SaaS","会計","モニターキャンペーン","オプション","一般公開","【販売終了】　","SVS002771","ＧＬＯＶＩＡ　ｓｍａｒｔ　会計　きらら　業務アプリケーション利用サービス　Ｑ／Ａオプション（コンパクト用）（モニター）","【販売終了】　ＧＬＯＶＩＡ　ｓｍａｒｔ　会計　きらら　業務アプリケーション利用サービス　Ｑ／Ａオプション（コンパクト用）（モニター）",10000,"月額","・24回まで/年\n※コンパクトプラン用\n","2011/03/31\n販売停止",1334,0.75,1000]
[null,"SaaS","会計","モニターキャンペーン","基本","一般公開","【販売終了】　","SVS002772","ＧＬＯＶＩＡ　ｓｍａｒｔ　会計　きらら　業務アプリケーション利用サービス　ベーシックプラン（１ＩＤ）（モニター）","【販売終了】　ＧＬＯＶＩＡ　ｓｍａｒｔ　会計　きらら　業務アプリケーション利用サービス　ベーシックプラン（１ＩＤ）（モニター）",35000,"月額","・利用可能日：毎日\n・利用時間：7:00～24:00\n※Q/Aあり（60回/年まで）","2011/03/31\n販売停止",4667,0.75,3500]
[null,"SaaS","会計","モニターキャンペーン","オプション","一般公開","【販売終了】　","SVS002773","ＧＬＯＶＩＡ　ｓｍａｒｔ　会計　きらら　業務アプリケーション利用サービス　利用者追加（１ＩＤ）オプション（モニター）","【販売終了】　ＧＬＯＶＩＡ　ｓｍａｒｔ　会計　きらら　業務アプリケーション利用サービス　利用者追加（１ＩＤ）オプション（モニター）",15000,"月額","※ベーシックプラン用（基本ID＋6ID=7IDまで）","2011/03/31\n販売停止",2000,0.75,1500]
[null,"SaaS","会計","モニターキャンペーン","基本","一般公開","【販売終了】　","SVS002774","ＧＬＯＶＩＡ　ｓｍａｒｔ　会計　きらら　業務アプリケーション利用サービス　プレミアムプラン（３ＩＤ）（モニター）","【販売終了】　ＧＬＯＶＩＡ　ｓｍａｒｔ　会計　きらら　業務アプリケーション利用サービス　プレミアムプラン（３ＩＤ）（モニター）",80000,"月額","・利用可能日：毎日\n・利用時間：7:00～24:00\n・リモートスポット支援（2回/年まで）\n※Q/Aあり（60回/年まで）","2011/03/31\n販売停止",10667,0.75,8000]
[null,"SaaS","会計","モニターキャンペーン","オプション","一般公開","【販売終了】　","SVS002775","ＧＬＯＶＩＡ　ｓｍａｒｔ　会計　きらら　業務アプリケーション利用サービス　利用者追加（１ＩＤ）オプション（モニター）","【販売終了】　ＧＬＯＶＩＡ　ｓｍａｒｔ　会計　きらら　業務アプリケーション利用サービス　利用者追加（１ＩＤ）オプション（モニター）",15000,"月額","※プレミアムプラン用（基本ID＋4ID=7IDまで）","2011/03/31\n販売停止",2000,0.75,1500]
[null,"SaaS","会計","通常商品","基本","一般公開","【販売終了】　","SVS002700","ＧＬＯＶＩＡ　ｓｍａｒｔ　会計　きらら　業務アプリケーション利用サービス　コンパクトプラン（１ＩＤ）","【販売終了】　ＧＬＯＶＩＡ　ｓｍａｒｔ　会計　きらら　業務アプリケーション利用サービス　コンパクトプラン（１ＩＤ）",9800,"月額","・利用可能日：５日／週\n・利用時間：13:00～17:00\n・1ユーザまで\n※Q/Aなし（別途オプション）","2011/06/01\n販売停止",null,0.75,{"$f":"ROUNDDOWN(K14*P14,-1)","v":7350}]
[null,"SaaS","会計","通常商品","オプション","一般公開","【販売終了】　","SVS002701","ＧＬＯＶＩＡ　ｓｍａｒｔ　会計　きらら　業務アプリケーション利用サービス　Ｑ／Ａオプション（コンパクト用）","【販売終了】　ＧＬＯＶＩＡ　ｓｍａｒｔ　会計　きらら　業務アプリケーション利用サービス　Ｑ／Ａオプション（コンパクト用）",10000,"月額","・24回まで/年\n※コンパクトプラン用","2011/06/01\n販売停止",null,0.75,7500]
[null,"SaaS","会計","通常商品","基本","一般公開","【販売終了】　","SVS002702","ＧＬＯＶＩＡ　ｓｍａｒｔ　会計　きらら　業務アプリケーション利用サービス　ベーシックプラン（１ＩＤ）","【販売終了】　ＧＬＯＶＩＡ　ｓｍａｒｔ　会計　きらら　業務アプリケーション利用サービス　ベーシックプラン（１ＩＤ）",35000,"月額","・利用可能日：５日／週\n・利用時間：09:00～17:00\n※Q/Aあり（60回/年まで）","2011/06/01\n販売停止",null,0.75,26250]
[null,"SaaS","会計","通常商品","オプション","一般公開","【販売終了】　","SVS002703","ＧＬＯＶＩＡ　ｓｍａｒｔ　会計　きらら　業務アプリケーション利用サービス　利用者追加（１ＩＤ）オプション","【販売終了】　ＧＬＯＶＩＡ　ｓｍａｒｔ　会計　きらら　業務アプリケーション利用サービス　利用者追加（１ＩＤ）オプション",15000,"月額","※ベーシックプラン用（基本ID＋6ID=7IDまで）","2011/06/01\n販売停止",null,0.75,11250]
[null,"SaaS","会計","通常商品","基本","一般公開","【販売終了】　","SVS002704","ＧＬＯＶＩＡ　ｓｍａｒｔ　会計　きらら　業務アプリケーション利用サービス　プレミアムプラン（３ＩＤ）","【販売終了】　ＧＬＯＶＩＡ　ｓｍａｒｔ　会計　きらら　業務アプリケーション利用サービス　プレミアムプラン（３ＩＤ）",80000,"月額","・利用可能日：毎日\n・利用時間：09:00～24:00\n・リモートスポット支援（2回/年まで）\n※Q/Aあり（60回/年まで）","2011/06/01\n販売停止",null,0.75,60000]
[null,"SaaS","会計","通常商品","オプション","一般公開","【販売終了】　","SVS002705","ＧＬＯＶＩＡ　ｓｍａｒｔ　会計　きらら　業務アプリケーション利用サービス　利用者追加（１ＩＤ）オプション","【販売終了】　ＧＬＯＶＩＡ　ｓｍａｒｔ　会計　きらら　業務アプリケーション利用サービス　利用者追加（１ＩＤ）オプション",15000,"月額","※プレミアムプラン用（基本ID＋4ID=7IDまで）","2011/06/01\n販売停止",null,0.75,11250]
[null,"SaaS","会計","利用日/利用時間拡大","基本","一般公開","【販売終了】　","SVS002760","ＧＬＯＶＩＡ　ｓｍａｒｔ　きらら　会計　業務アプリケーション利用サービス　コンパクトプラン（１ＩＤ）","【販売終了】　ＧＬＯＶＩＡ　ｓｍａｒｔ　きらら　会計　業務アプリケーション利用サービス　コンパクトプラン（１ＩＤ）",9800,"月額","・利用可能日：毎日\n・利用時間：07:00～24:00\n・1ユーザまで\n※Q/Aなし（別途オプション）","2011-06-01",null,0.75,7350]
[null,"SaaS","会計","利用日/利用時間拡大","オプション","一般公開","【販売終了】　","SVS002761","ＧＬＯＶＩＡ　ｓｍａｒｔ　きらら　会計　業務アプリケーション利用サービス　Ｑ／Ａオプション（コンパクト用）","【販売終了】　ＧＬＯＶＩＡ　ｓｍａｒｔ　きらら　会計　業務アプリケーション利用サービス　Ｑ／Ａオプション（コンパクト用）",10000,"月額","・24回まで/年\n※コンパクト用","2011-06-01",null,0.75,7500]
[null,"SaaS","会計","利用日/利用時間拡大","オプション","一般公開","【販売終了】　","SVS002790","ＧＬＯＶＩＡ　ｓｍａｒｔ　きらら　会計　業務アプリケーション利用サービス　コンパクト手形管理オプション",{"$f":"CONCATENATE(G22,I22)","v":"【販売終了】　ＧＬＯＶＩＡ　ｓｍａｒｔ　きらら　会計　業務アプリケーション利用サービス　コンパクト手形管理オプション"},5000,"月額","コンパクトプラン用の手形管理OP","2012-01-06",null,0.75,3750]
[null,"SaaS","会計","利用日/利用時間拡大","基本","一般公開","【販売終了】　","SVS002762","ＧＬＯＶＩＡ　ｓｍａｒｔ　きらら　会計　業務アプリケーション利用サービス　ベーシックプラン（１ＩＤ）","【販売終了】　ＧＬＯＶＩＡ　ｓｍａｒｔ　きらら　会計　業務アプリケーション利用サービス　ベーシックプラン（１ＩＤ）",35000,"月額","・利用可能日：毎日\n・利用時間：07:00～24:00\n※Q/Aあり（60回/年まで）","2011-06-01",null,0.75,26250]
[null,"SaaS","会計","利用日/利用時間拡大","オプション","一般公開","【販売終了】　","SVS002763","ＧＬＯＶＩＡ　ｓｍａｒｔ　きらら　会計　業務アプリケーション利用サービス　ベーシック利用者追加（１ＩＤ）オプション","【販売終了】　ＧＬＯＶＩＡ　ｓｍａｒｔ　きらら　会計　業務アプリケーション利用サービス　ベーシック利用者追加（１ＩＤ）オプション",15000,"月額","※ベーシック用（基本ID＋6ID=7IDまで）","2011-06-01",null,0.75,11250]
[null,"SaaS","会計","利用日/利用時間拡大","オプション","一般公開","【販売終了】　","SVS002791","ＧＬＯＶＩＡ　ｓｍａｒｔ　きらら　会計　業務アプリケーション利用サービス　ベーシック手形管理オプション",{"$f":"CONCATENATE(G25,I25)","v":"【販売終了】　ＧＬＯＶＩＡ　ｓｍａｒｔ　きらら　会計　業務アプリケーション利用サービス　ベーシック手形管理オプション"},10000,"月額","ベーシックプラン用の手形管理OP","2012-01-06",null,0.75,7500]
[null,"SaaS","会計","利用日/利用時間拡大","基本","一般公開","【販売終了】　","SVS002764","ＧＬＯＶＩＡ　ｓｍａｒｔ　きらら　会計　業務アプリケーション利用サービス　プレミアムプラン（３ＩＤ）","【販売終了】　ＧＬＯＶＩＡ　ｓｍａｒｔ　きらら　会計　業務アプリケーション利用サービス　プレミアムプラン（３ＩＤ）",80000,"月額","・利用可能日：毎日\n・利用時間：07:00～24:00\n・リモートスポット支援（2回/年まで）\n※Q/Aあり（60回/年まで）","2011-06-01",null,0.75,60000]
[null,"SaaS","会計","利用日/利用時間拡大","オプション","一般公開","【販売終了】　","SVS002765","ＧＬＯＶＩＡ　ｓｍａｒｔ　きらら　会計　業務アプリケーション利用サービス　プレミアム利用者追加（１ＩＤ）オプション","【販売終了】　ＧＬＯＶＩＡ　ｓｍａｒｔ　きらら　会計　業務アプリケーション利用サービス　プレミアム利用者追加（１ＩＤ）オプション",15000,"月額","※プレミアム用（基本ID＋4ID=7IDまで）","2011-06-01",null,0.75,11250]
[null,"SaaS","会計","利用日/利用時間拡大","オプション","一般公開","【販売終了】　","SVS002792","ＧＬＯＶＩＡ　ｓｍａｒｔ　きらら　会計　業務アプリケーション利用サービス　プレミアム手形管理オプション",{"$f":"CONCATENATE(G28,I28)","v":"【販売終了】　ＧＬＯＶＩＡ　ｓｍａｒｔ　きらら　会計　業務アプリケーション利用サービス　プレミアム手形管理オプション"},10000,"月額","プレミアムプラン用の手形管理OP","2012-01-06",null,0.75,7500]
[null,"SaaS","会計","利用日/利用時間拡大","基本","一般公開","【販売終了】　","SVS002766","ＧＬＯＶＩＡ　ｓｍａｒｔ　きらら　会計　業務アプリケーション利用サービス　ミニベーシックプラン（１ＩＤ）","【販売終了】　ＧＬＯＶＩＡ　ｓｍａｒｔ　きらら　会計　業務アプリケーション利用サービス　ミニベーシックプラン（１ＩＤ）",10000,"月額","・利用可能日：毎日\n・利用時間：07:00～24:00\n※Q/Aあり（24回/年まで）","2011-06-01",null,0.75,7500]
[null,"SaaS","会計","利用日/利用時間拡大","オプション","一般公開","【販売終了】　","SVS002793","ＧＬＯＶＩＡ　ｓｍａｒｔ　きらら　会計　業務アプリケーション利用サービス　ミニベーシック手形管理オプション",{"$f":"CONCATENATE(G30,I30)","v":"【販売終了】　ＧＬＯＶＩＡ　ｓｍａｒｔ　きらら　会計　業務アプリケーション利用サービス　ミニベーシック手形管理オプション"},5000,"月額","ミニベーシック用の手形管理OP","2012-01-06",null,0.75,3750]
[null,"SaaS","会計","利用日/利用時間拡大","オプション","一般公開","【販売終了】　","SVS002767","ＧＬＯＶＩＡ　ｓｍａｒｔ　きらら　会計　業務アプリケーション利用サービス　ミニベーシック利用者追加（１ＩＤ）オプション","【販売終了】　ＧＬＯＶＩＡ　ｓｍａｒｔ　きらら　会計　業務アプリケーション利用サービス　ミニベーシック利用者追加（１ＩＤ）オプション",3500,"月額","※ミニベーシック用（基本ID＋2ID=3IDまで）","2011-06-01",null,0.75,2620]
[null,"SaaS","人事給与","利用日/利用時間拡大","基本","一般公開","【販売終了】　","SVS002710","ＧＬＯＶＩＡ　ｓｍａｒｔ　きらら　人事給与　業務アプリケーション利用サービス　コンパクトプラン（１ＩＤ、従業員５０名）",{"$f":"CONCATENATE(G32,I32)","v":"【販売終了】　ＧＬＯＶＩＡ　ｓｍａｒｔ　きらら　人事給与　業務アプリケーション利用サービス　コンパクトプラン（１ＩＤ、従業員５０名）"},9800,"月額","・利用可能日：毎日\n・利用時間：07:00～24:00\n・1ユーザ限定\n・従業員50名限定\n※Q/Aなし（別途オプション）","2011-06-01",null,0.75,7350]
[null,"SaaS","人事給与","利用日/利用時間拡大","オプション","一般公開","【販売終了】　","SVS002711","ＧＬＯＶＩＡ　ｓｍａｒｔ　きらら　人事給与　業務アプリケーション利用サービス　Ｑ／Ａオプション（コンパクト用）",{"$f":"CONCATENATE(G33,I33)","v":"【販売終了】　ＧＬＯＶＩＡ　ｓｍａｒｔ　きらら　人事給与　業務アプリケーション利用サービス　Ｑ／Ａオプション（コンパクト用）"},10000,"月額","・24回まで/年\n※コンパクトプラン用","2011-06-01",null,0.75,7500]
[null,"SaaS","人事給与","利用日/利用時間拡大","基本","一般公開","【販売終了】　","SVS002712","ＧＬＯＶＩＡ　ｓｍａｒｔ　きらら　人事給与　業務アプリケーション利用サービス　ベーシックプラン（５ＩＤ、従業員１００名）","【販売終了】　ＧＬＯＶＩＡ　ｓｍａｒｔ　きらら　人事給与　業務アプリケーション利用サービス　ベーシックプラン（５ＩＤ、従業員１００名）",35000,"月額","・利用可能日：毎日\n・利用時間：07:00～24:00\n・5ユーザ限定\n・従業員100名付き\n※Q/Aあり（60回/年まで）","2011-06-01",null,0.75,26250]
[null,"SaaS","人事給与","利用日/利用時間拡大","オプション","一般公開","【販売終了】　","SVS002713","ＧＬＯＶＩＡ　ｓｍａｒｔ　きらら　人事給与　業務アプリケーション利用サービス　ベーシック従業員５０名追加オプション","【販売終了】　ＧＬＯＶＩＡ　ｓｍａｒｔ　きらら　人事給与　業務アプリケーション利用サービス　ベーシック従業員５０名追加オプション",10000,"月額","※ベーシック用（従業員 基本＋200名=300名まで）","2011-06-01",null,0.75,7500]
[null,"SaaS","人事給与","利用日/利用時間拡大","基本","一般公開","【販売終了】　","SVS002714","ＧＬＯＶＩＡ　ｓｍａｒｔ　きらら　人事給与　業務アプリケーション利用サービス　プレミアムプラン（５ＩＤ、従業員２００名）","【販売終了】　ＧＬＯＶＩＡ　ｓｍａｒｔ　きらら　人事給与　業務アプリケーション利用サービス　プレミアムプラン（５ＩＤ、従業員２００名）",80000,"月額","・利用可能日：毎日\n・利用時間：07:00～24:00\n・５ユーザ限定\n・従業員200名付き\n・リモートスポット支援（2回/年まで）\n※Q/Aあり（60回/年まで）","2011-06-01",null,0.75,60000]
[null,"SaaS","人事給与","利用日/利用時間拡大","オプション","一般公開","【販売終了】　","SVS002715","ＧＬＯＶＩＡ　ｓｍａｒｔ　きらら　人事給与　業務アプリケーション利用サービス　プレミアム利用者５０名追加オプション","【販売終了】　ＧＬＯＶＩＡ　ｓｍａｒｔ　きらら　人事給与　業務アプリケーション利用サービス　プレミアム利用者５０名追加オプション",10000,"月額","※プレミアム用（従業員 基本＋100名=300名まで）","2011-06-01",null,0.75,7500]
[null,"SaaS","人事給与","利用日/利用時間拡大","基本","一般公開","【販売終了】　","SVS002716","ＧＬＯＶＩＡ　ｓｍａｒｔ　きらら　人事給与　業務アプリケーション利用サービス　ミニベーシックプラン（３ＩＤ、従業員５０名）","【販売終了】　ＧＬＯＶＩＡ　ｓｍａｒｔ　きらら　人事給与　業務アプリケーション利用サービス　ミニベーシックプラン（３ＩＤ、従業員５０名）",10000,"月額","・利用可能日：毎日\n・利用時間：07:00～24:00\n・3ユーザ限定\n・従業員50名付き\n※Q/Aあり（24回/年まで）","2011-06-01",null,0.75,7500]
[null,"SaaS","人事給与","利用日/利用時間拡大","オプション","一般公開","【販売終了】　","SVS002717","ＧＬＯＶＩＡ　ｓｍａｒｔ　きらら　人事給与　業務アプリケーション利用サービス　ミニベーシック利用者２５追加オプション","【販売終了】　ＧＬＯＶＩＡ　ｓｍａｒｔ　きらら　人事給与　業務アプリケーション利用サービス　ミニベーシック利用者２５追加オプション",3500,"月額","※ミニベーシック用（従業員 基本＋50名=100名まで）","2011-06-01",null,0.75,2620]
[null,"SaaS","会計","ビジネスパートナー向け","基本","非公開","【販売停止2015-10】","SVS002780","ＧＬＯＶＩＡ　ｓｍａｒｔ　会計　きらら　業務アプリケーション利用サービス　コンパクトプラン（１ＩＤ）（ビジネスパートナー向け）","【販売停止2015-10】ＧＬＯＶＩＡ　ｓｍａｒｔ　会計　きらら　業務アプリケーション利用サービス　コンパクトプラン（１ＩＤ）（ビジネスパートナー向け）",1350,"月額","・利用可能日：毎日\n・利用時間：07:00～24:00\n・1ユーザまで\n※Q/Aなし（別途オプション）","2011-05-16",1307,0.75,{"$f":"ROUNDDOWN(O40*P40,-1)","v":980}]
[null,"SaaS","会計","ビジネスパートナー向け","オプション","非公開",null,"SVS002794","ＧＬＯＶＩＡ　ｓｍａｒｔ　きらら　会計　業務アプリケーション利用サービス　コンパクト手形管理オプション（ビジネスパートナー向け）",{"$f":"CONCATENATE(G41,I41)","v":"ＧＬＯＶＩＡ　ｓｍａｒｔ　きらら　会計　業務アプリケーション利用サービス　コンパクト手形管理オプション（ビジネスパートナー向け）"},700,"月額","BP向けコンパクトプラン用の手形管理OP","2012-01-06",670,0.75,500]
[null,"SaaS","会計","ビジネスパートナー向け","オプション","非公開",null,"SVS002781","ＧＬＯＶＩＡ　ｓｍａｒｔ　会計　きらら　業務アプリケーション利用サービス　Ｑ／Ａオプション（コンパクト用）（ビジネスパートナー向け）","ＧＬＯＶＩＡ　ｓｍａｒｔ　会計　きらら　業務アプリケーション利用サービス　Ｑ／Ａオプション（コンパクト用）（ビジネスパートナー向け）",1400,"月額","・24回まで/年\n※コンパクトプラン用","2011-05-16",1334,0.75,1000]
[null,"SaaS","会計","ビジネスパートナー向け","基本","非公開","【販売停止2015-10】","SVS002782","ＧＬＯＶＩＡ　ｓｍａｒｔ　会計　きらら　業務アプリケーション利用サービス　ベーシックプラン（１ＩＤ）（ビジネスパートナー向け）","【販売停止2015-10】ＧＬＯＶＩＡ　ｓｍａｒｔ　会計　きらら　業務アプリケーション利用サービス　ベーシックプラン（１ＩＤ）（ビジネスパートナー向け）",4700,"月額","・利用可能日：毎日\n・利用時間：07:00～24:00\n※Q/Aあり（60回/年まで）","2011-05-16",4667,0.75,3500]
[null,"SaaS","会計","ビジネスパートナー向け","オプション","非公開",null,"SVS002795","ＧＬＯＶＩＡ　ｓｍａｒｔ　きらら　会計　業務アプリケーション利用サービス　ベーシック手形管理オプション（ビジネスパートナー向け）",{"$f":"CONCATENATE(G44,I44)","v":"ＧＬＯＶＩＡ　ｓｍａｒｔ　きらら　会計　業務アプリケーション利用サービス　ベーシック手形管理オプション（ビジネスパートナー向け）"},1400,"月額","BP向けベーシックプラン用の手形管理OP","2012-01-06",1334,0.75,1000]
[null,"SaaS","会計","ビジネスパートナー向け","オプション","非公開",null,"SVS002783","ＧＬＯＶＩＡ　ｓｍａｒｔ　会計　きらら　業務アプリケーション利用サービス　利用者追加（１ＩＤ）オプション（ビジネスパートナー向け）","ＧＬＯＶＩＡ　ｓｍａｒｔ　会計　きらら　業務アプリケーション利用サービス　利用者追加（１ＩＤ）オプション（ビジネスパートナー向け）",2000,"月額","※ベーシックプラン用（基本ID＋6ID=7IDまで）","2011-05-16",2000,0.75,1500]
[null,"SaaS","人事給与","ビジネスパートナー向け","基本","非公開","【販売停止2015-10】","SVS002720","ＧＬＯＶＩＡ　ｓｍａｒｔ　人事給与　きらら　業務アプリケーション利用サービス　コンパクトプラン（１ＩＤ、従業員５０名）（ビジネスパートナー向け）","【販売停止2015-10】ＧＬＯＶＩＡ　ｓｍａｒｔ　人事給与　きらら　業務アプリケーション利用サービス　コンパクトプラン（１ＩＤ、従業員５０名）（ビジネスパートナー向け）",1350,"月額","・利用可能日：毎日\n・利用時間：07:00～24:00\n・1ユーザ限定\n・従業員50名限定\n※Q/Aなし（別途オプション）","2011-07-07",1307,0.75,980]
[null,"SaaS","人事給与","ビジネスパートナー向け","オプション","非公開",null,"SVS002721","ＧＬＯＶＩＡ　ｓｍａｒｔ　人事給与　きらら　業務アプリケーション利用サービス　Ｑ／Ａオプション（コンパクト用）（ビジネスパートナー向け）","ＧＬＯＶＩＡ　ｓｍａｒｔ　人事給与　きらら　業務アプリケーション利用サービス　Ｑ／Ａオプション（コンパクト用）（ビジネスパートナー向け）",1400,"月額","・24回まで/年\n※コンパクトプラン用","2011-07-07",1334,0.75,1000]
[null,"SaaS","人事給与","ビジネスパートナー向け","基本","非公開","【販売停止2015-10】","SVS002722","ＧＬＯＶＩＡ　ｓｍａｒｔ　人事給与　きらら　業務アプリケーション利用サービス　ベーシックプラン（５ＩＤ、従業員１００名）（ビジネスパートナー向け）","【販売停止2015-10】ＧＬＯＶＩＡ　ｓｍａｒｔ　人事給与　きらら　業務アプリケーション利用サービス　ベーシックプラン（５ＩＤ、従業員１００名）（ビジネスパートナー向け）",4700,"月額","・利用可能日：毎日\n・利用時間：07:00～24:00\n・5ユーザ限定\n・従業員100名付き\n※Q/Aあり（60回/年まで）","2011-07-07",4667,0.75,3500]
[null,"SaaS","人事給与","ビジネスパートナー向け","オプション","非公開",null,"SVS002723","ＧＬＯＶＩＡ　ｓｍａｒｔ　人事給与　きらら　業務アプリケーション利用サービス　ベーシック従業員５０名追加オプション（ビジネスパートナー向け）","ＧＬＯＶＩＡ　ｓｍａｒｔ　人事給与　きらら　業務アプリケーション利用サービス　ベーシック従業員５０名追加オプション（ビジネスパートナー向け）",1400,"月額","※ベーシック用（従業員 基本＋200名=300名まで）","2011-07-07",1334,0.75,1000]
[null,"SaaS","会計","ミニ年額商品","基本","非公開","【販売停止2015-10】","SVS002768","ＧＬＯＶＩＡ ｓｍａｒｔ きらら 会計 業務アプリケーション利用サービス ミニベーシックプラン（１ＩＤ）（年額）",{"$f":"CONCATENATE(G50,I50)","v":"【販売停止2015-10】ＧＬＯＶＩＡ ｓｍａｒｔ きらら 会計 業務アプリケーション利用サービス ミニベーシックプラン（１ＩＤ）（年額）"},110000,"年額","・利用可能日：毎日\n・利用時間：07:00～24:00\n※Q/Aあり（24回/年まで）","2012-11-01",null,0.75,{"$f":"ROUNDDOWN(K50*P50,-1)","v":82500}]
[null,"SaaS","会計","ミニ年額商品","オプション","非公開","【販売停止2015-10】","SVS002769","ＧＬＯＶＩＡ ｓｍａｒｔ きらら 会計 業務アプリケーション利用サービス ミニベーシック利用者追加（１ＩＤ）オプション（年額）",{"$f":"CONCATENATE(G51,I51)","v":"【販売停止2015-10】ＧＬＯＶＩＡ ｓｍａｒｔ きらら 会計 業務アプリケーション利用サービス ミニベーシック利用者追加（１ＩＤ）オプション（年額）"},55000,"年額","ミニベーシック用の手形管理OP","2012-11-01",null,0.75,41250]
[null,"SaaS","会計","ミニ年額商品","オプション","非公開","【販売停止2015-10】","SVS002796","ＧＬＯＶＩＡ ｓｍａｒｔ きらら 会計 業務アプリケーション利用サービス ミニベーシック手形管理オプション（年額）",{"$f":"CONCATENATE(G52,I52)","v":"【販売停止2015-10】ＧＬＯＶＩＡ ｓｍａｒｔ きらら 会計 業務アプリケーション利用サービス ミニベーシック手形管理オプション（年額）"},35000,"年額","※ミニベーシック用（基本ID＋2ID=3IDまで）","2012-11-01",null,0.75,26250]
[null,"SaaS","人事給与","ミニ年額商品","基本","非公開","【販売停止2015-10】","SVS002718","ＧＬＯＶＩＡ ｓｍａｒｔ きらら 人事給与 業務アプリケーション利用サービス ミニベーシックプラン（３ＩＤ、従業員５０名）（年額）",{"$f":"CONCATENATE(G53,I53)","v":"【販売停止2015-10】ＧＬＯＶＩＡ ｓｍａｒｔ きらら 人事給与 業務アプリケーション利用サービス ミニベーシックプラン（３ＩＤ、従業員５０名）（年額）"},110000,"年額","・利用可能日：毎日\n・利用時間：07:00～24:00\n・3ユーザ限定\n・従業員50名付き\n※Q/Aあり（24回/年まで）","2012-11-01",null,0.75,82500]
[null,"SaaS","人事給与","ミニ年額商品","オプション","非公開","【販売停止2015-10】","SVS002719","ＧＬＯＶＩＡ ｓｍａｒｔ きらら 人事給与 業務アプリケーション利用サービス ミニベーシック従業員２５名追加オプション（年額）",{"$f":"CONCATENATE(G54,I54)","v":"【販売停止2015-10】ＧＬＯＶＩＡ ｓｍａｒｔ きらら 人事給与 業務アプリケーション利用サービス ミニベーシック従業員２５名追加オプション（年額）"},38500,"年額","※ミニベーシック用（従業員 基本＋50名=100名まで）","2012-11-01",null,0.75,28870]
[null,"PKG","会計","通常商品","基本","一般公開",null,"A296CMHM","ＧＬＯＶＩＡ　ｓｍａｒｔ　会計　きらら　Ｖ１　メディアパック",{"$f":"CONCATENATE(G55,I55)","v":"ＧＬＯＶＩＡ　ｓｍａｒｔ　会計　きらら　Ｖ１　メディアパック"},5000,"一括",null,"2010-12-01",null,0.63,3150]
[null,"PKG","会計","通常商品","基本","一般公開",null,"A2969MHN","ＧＬＯＶＩＡ　ｓｍａｒｔ　会計　きらら　Ｖ１　基本ライセンス（２ユーザライセンス付）","ＧＬＯＶＩＡ　ｓｍａｒｔ　会計　きらら　Ｖ１　基本ライセンス（２ユーザライセンス付）",460000,"一括",null,"2010-12-01",null,0.63,289800]
[null,"PKG","会計","通常商品","オプション","一般公開",null,"A2969MHP","ＧＬＯＶＩＡ　ｓｍａｒｔ　会計　きらら　Ｖ１　追加１ユーザライセンス","ＧＬＯＶＩＡ　ｓｍａｒｔ　会計　きらら　Ｖ１　追加１ユーザライセンス",250000,"一括","基本ID＋5IDまで","2010-12-01",null,0.63,157500]
[null,"PKG","会計","通常商品","オプション","一般公開",null,"A2969PSW","ＧＬＯＶＩＡ　ｓｍａｒｔ　きらら　会計　Ｖ１　手形管理オプション　基本ライセンス",{"$f":"CONCATENATE(G58,I58)","v":"ＧＬＯＶＩＡ　ｓｍａｒｔ　きらら　会計　Ｖ１　手形管理オプション　基本ライセンス"},250000,"一括",null,"2011-12-28",null,0.63,157500]
[null,"PKG-ME&S","会計","通常商品","基本","一般公開",null,"A2960MHNM1","ＧＬＯＶＩＡ　ｓｍａｒｔ　会計　きらら　Ｖ１　基本ライセンス（２ユーザライセンス付）　プログラムサポート","ＧＬＯＶＩＡ　ｓｍａｒｔ　会計　きらら　Ｖ１　基本ライセンス（２ユーザライセンス付）　プログラムサポート",69000,"年額",null,"2010-12-01",null,0.63,43470]
[null,"PKG-ME&S","会計","通常商品","オプション","一般公開",null,"A2960MHPM1","ＧＬＯＶＩＡ　ｓｍａｒｔ　会計　きらら　Ｖ１　追加１ユーザライセンス　プログラムサポート","ＧＬＯＶＩＡ　ｓｍａｒｔ　会計　きらら　Ｖ１　追加１ユーザライセンス　プログラムサポート",37500,"年額",null,"2010-12-01",null,0.63,23620]
[null,"PKG-ME&S","会計","通常商品","オプション","一般公開",null,"A2960PSWM1","ＧＬＯＶＩＡ　ｓｍａｒｔ　きらら　会計　Ｖ１　手形管理オプション　基本ライセンス　プログラムサポート",{"$f":"CONCATENATE(G61,I61)","v":"ＧＬＯＶＩＡ　ｓｍａｒｔ　きらら　会計　Ｖ１　手形管理オプション　基本ライセンス　プログラムサポート"},37500,"年額",null,"2011-12-28",null,0.63,23620]
[null,"PKG-ME&S","会計","通常商品","基本","一般公開",null,"A2960MHNM","ＧＬＯＶＩＡ　ｓｍａｒｔ　会計　きらら　Ｖ１　基本ライセンス（２ユーザライセンス付）　プログラムサポート","ＧＬＯＶＩＡ　ｓｍａｒｔ　会計　きらら　Ｖ１　基本ライセンス（２ユーザライセンス付）　プログラムサポート",6900,"月額",null,"2010-12-01",null,0.63,4340]
[null,"PKG-ME&S","会計","通常商品","オプション","一般公開",null,"A2960MHPM","ＧＬＯＶＩＡ　ｓｍａｒｔ　会計　きらら　Ｖ１　追加１ユーザライセンス　プログラムサポート","ＧＬＯＶＩＡ　ｓｍａｒｔ　会計　きらら　Ｖ１　追加１ユーザライセンス　プログラムサポート",3750,"月額",null,"2010-12-01",null,0.63,2360]
[null,"PKG-ME&S","会計","通常商品","オプション","一般公開",null,"A2960PSWM","ＧＬＯＶＩＡ　ｓｍａｒｔ　きらら　会計　Ｖ１　手形管理オプション　基本ライセンス　プログラムサポート",{"$f":"CONCATENATE(G64,I64)","v":"ＧＬＯＶＩＡ　ｓｍａｒｔ　きらら　会計　Ｖ１　手形管理オプション　基本ライセンス　プログラムサポート"},3750,"月額",null,"2011-12-28",null,0.63,2360]
[null,"PKG","人事給与","通常商品","基本","一般公開",null,"A296CP81","ＧＬＯＶＩＡ　ｓｍａｒｔ　きらら　人事給与　Ｖ１　メディアパック",{"$f":"CONCATENATE(G65,I65)","v":"ＧＬＯＶＩＡ　ｓｍａｒｔ　きらら　人事給与　Ｖ１　メディアパック"},5000,"一括",null,"2011-07-15",null,0.63,3150]
[null,"PKG","人事給与","通常商品","基本","一般公開",null,"A2969P82","ＧＬＯＶＩＡ　ｓｍａｒｔ　きらら　人事給与　Ｖ１　基本ライセンス（２ユーザライセンス付）","ＧＬＯＶＩＡ　ｓｍａｒｔ　きらら　人事給与　Ｖ１　基本ライセンス（２ユーザライセンス付）",460000,"一括",null,"2011-07-15",null,0.63,289800]
[null,"PKG","人事給与","通常商品","オプション","一般公開",null,"A2969P83","ＧＬＯＶＩＡ　ｓｍａｒｔ　きらら　人事給与　Ｖ１　追加１ユーザライセンス","ＧＬＯＶＩＡ　ｓｍａｒｔ　きらら　人事給与　Ｖ１　追加１ユーザライセンス",250000,"一括",null,"2011-07-15",null,0.63,157500]
[null,"PKG-ME&S","人事給与","通常商品","基本","一般公開",null,"A2960P82M1","ＧＬＯＶＩＡ　ｓｍａｒｔ　きらら　人事給与　Ｖ１　基本ライセンス（２ユーザライセンス付）　プログラムサポート","ＧＬＯＶＩＡ　ｓｍａｒｔ　きらら　人事給与　Ｖ１　基本ライセンス（２ユーザライセンス付）　プログラムサポート",69000,"年額",null,"2011-07-15",null,0.63,43470]
[null,"PKG-ME&S","人事給与","通常商品","オプション","一般公開",null,"A2960P83M1","ＧＬＯＶＩＡ　ｓｍａｒｔ　きらら　人事給与　Ｖ１　追加１ユーザライセンス　プログラムサポート",{"$f":"CONCATENATE(G69,I69)","v":"ＧＬＯＶＩＡ　ｓｍａｒｔ　きらら　人事給与　Ｖ１　追加１ユーザライセンス　プログラムサポート"},37500,"年額",null,"2011-07-15",null,0.63,23620]
[null,"PKG-ME&S","人事給与","通常商品","基本","一般公開",null,"A2960P82M","ＧＬＯＶＩＡ　ｓｍａｒｔ　きらら　人事給与　Ｖ１　基本ライセンス（２ユーザライセンス付）　プログラムサポート","ＧＬＯＶＩＡ　ｓｍａｒｔ　きらら　人事給与　Ｖ１　基本ライセンス（２ユーザライセンス付）　プログラムサポート",6900,"月額",null,"2011-07-15",null,0.63,4340]
[null,"PKG-ME&S","人事給与","通常商品","オプション","一般公開",null,"A2960P83M","ＧＬＯＶＩＡ　ｓｍａｒｔ　きらら　人事給与　Ｖ１　追加１ユーザライセンス　プログラムサポート","ＧＬＯＶＩＡ　ｓｍａｒｔ　きらら　人事給与　Ｖ１　追加１ユーザライセンス　プログラムサポート",3750,"月額",null,"2011-07-15",null,0.63,2360]
[null,"PKG","会計","BP移行用","基本","非公開",null,"A2969P9T","ＧＬＯＶＩＡ　ｓｍａｒｔ　きらら　会計　Ｖ１　基本ライセンス（２ユーザライセンス付）　ＢＰ移行","ＧＬＯＶＩＡ　ｓｍａｒｔ　きらら　会計　Ｖ１　基本ライセンス（２ユーザライセンス付）　ＢＰ移行",230000,"一括","・メディア、ME&Sは通常商品を利用","2011-08-24",null,0.63,144900]
[null,"PKG","会計","BP移行用","オプション","非公開",null,"A2969P9U","ＧＬＯＶＩＡ　ｓｍａｒｔ　きらら　会計　Ｖ１　追加１ユーザライセンス　ＢＰ移行","ＧＬＯＶＩＡ　ｓｍａｒｔ　きらら　会計　Ｖ１　追加１ユーザライセンス　ＢＰ移行",125000,"一括",null,"2011-08-24",null,0.63,78750]
[null,"PKG","会計","BP移行用","オプション","非公開",null,"A2969PSX","ＧＬＯＶＩＡ　ｓｍａｒｔ　きらら　会計　Ｖ１　手形管理オプション　基本ライセンス　ＢＰ移行",{"$f":"CONCATENATE(G74,I74)","v":"ＧＬＯＶＩＡ　ｓｍａｒｔ　きらら　会計　Ｖ１　手形管理オプション　基本ライセンス　ＢＰ移行"},125000,"一括",null,"2011-08-24",null,0.63,78750]
[null,"PKG","人事給与","BP移行用","基本","非公開",null,"A2969P9V","ＧＬＯＶＩＡ　ｓｍａｒｔ　きらら　人事給与　Ｖ１　基本ライセンス（２ユーザライセンス付）　ＢＰ移行","ＧＬＯＶＩＡ　ｓｍａｒｔ　きらら　人事給与　Ｖ１　基本ライセンス（２ユーザライセンス付）　ＢＰ移行",230000,"一括","・メディア、ME&Sは通常商品を利用","2011-08-24",null,0.63,144900]
[null,"PKG","人事給与","BP移行用","オプション","非公開",null,"A2969P9W","ＧＬＯＶＩＡ　ｓｍａｒｔ　きらら　人事給与　Ｖ１　追加１ユーザライセンス　ＢＰ移行","ＧＬＯＶＩＡ　ｓｍａｒｔ　きらら　人事給与　Ｖ１　追加１ユーザライセンス　ＢＰ移行",125000,"一括",null,"2011-08-24",null,0.63,78750]
[null,"PKG","固定資産","ｽﾀﾝﾄﾞｱﾛﾝ版(STD)","基本","一般公開",null,"A296CPSY","減価償却応援","減価償却応援",148000,"一括","ｽﾀﾝﾄﾞｱﾛﾝ版","2012-02-06",null,0.65,96200]
[null,"PKG-ME&S","固定資産","ｽﾀﾝﾄﾞｱﾛﾝ版(STD)","基本","一般公開",null,"A2960PSYM1","減価償却応援　プログラムサポート","減価償却応援　プログラムサポート",30000,"年額","ｽﾀﾝﾄﾞｱﾛﾝ版：ME&S","2012-02-06",null,0.9,27000]
[null,"PKG","固定資産","ﾈｯﾄﾜｰｸ版(NW)","基本","一般公開",null,"A296CPT0","減価償却応援　３ユーザ","減価償却応援　３ユーザ",350000,"一括","ﾈｯﾄﾜｰｸ版：3U、※ﾈｯﾄﾜｰｸ基本ﾊﾟｯｸ 5ﾕｰｻﾞ必須","2012-02-06",null,0.65,227500]
[null,"PKG-ME&S","固定資産","ﾈｯﾄﾜｰｸ版(NW)","基本","一般公開",null,"A2960PT0M1","減価償却応援　３ユーザ　プログラムサポート",{"$f":"CONCATENATE(G80,I80)","v":"減価償却応援　３ユーザ　プログラムサポート"},50000,"年額","ﾈｯﾄﾜｰｸ版：3U、ME&S","2012-02-06",null,0.9,45000]
[null,"PKG","固定資産","ﾈｯﾄﾜｰｸ版(NW)","基本","一般公開",null,"A296CPT1","減価償却応援　５ユーザ","減価償却応援　５ユーザ",450000,"一括","ﾈｯﾄﾜｰｸ版：5U、※ﾈｯﾄﾜｰｸ基本ﾊﾟｯｸ 5ﾕｰｻﾞ必須","2012-02-06",null,0.65,292500]
[null,"PKG-ME&S","固定資産","ﾈｯﾄﾜｰｸ版(NW)","基本","一般公開",null,"A2960PT1M1","減価償却応援　５ユーザ　プログラムサポート",{"$f":"CONCATENATE(G82,I82)","v":"減価償却応援　５ユーザ　プログラムサポート"},75000,"年額","ﾈｯﾄﾜｰｸ版：5U、ME&S","2012-02-06",null,0.9,67500]
[null,"PKG","固定資産","ﾈｯﾄﾜｰｸ版(NW)","オプション","一般公開",null,"A2969PT2","減価償却応援　追加ライセンス５ユーザ","減価償却応援　追加ライセンス５ユーザ",250000,"一括","ﾈｯﾄﾜｰｸ版：+5U、※ﾈｯﾄﾜｰｸ基本ﾊﾟｯｸ 追加5U必須","2012-02-06",null,0.65,162500]
[null,"PKG-ME&S","固定資産","ﾈｯﾄﾜｰｸ版(NW)","オプション","一般公開",null,"A2960PT2M1","減価償却応援　追加ライセンス５ユーザ　プログラムサポート","減価償却応援　追加ライセンス５ユーザ　プログラムサポート",30000,"年額","ﾈｯﾄﾜｰｸ版：+5U、ME&S","2012-02-06",null,0.9,27000]
[null,"PKG","固定資産","ﾈｯﾄﾜｰｸ基本ﾊﾟｯｸ","オプション","一般公開",null,"A296CPT3","ネットワーク基本パック　５ユーザ","ネットワーク基本パック　５ユーザ",150000,"一括","ﾈｯﾄﾜｰｸ版：基本P","2012-02-06",null,0.65,97500]
[null,"PKG","固定資産","ﾈｯﾄﾜｰｸ基本ﾊﾟｯｸ","オプション","一般公開",null,"A2969PT4","ネットワーク基本パック　追加５Ｕ","ネットワーク基本パック　追加５Ｕ",100000,"一括","ﾈｯﾄﾜｰｸ版：+基本P5U","2012-02-06",null,0.65,65000]
[null,"PKG","固定資産","ｱｯﾌﾟｸﾞﾚｰﾄﾞ(STD→NW)","オプション","一般公開",null,"A296CPT5","減価償却応援　３ユーザ　アップグレード","減価償却応援　３ユーザ　アップグレード",200000,"一括","ｽﾀﾝﾄﾞｱﾛﾝ版：NW版3Uｱｯﾌﾟｸﾞﾚｰﾄﾞ、※ﾈｯﾄﾜｰｸ基本P 5U必須","2012-02-06",null,0.65,130000]
[null,"PKG","固定資産","ｱｯﾌﾟｸﾞﾚｰﾄﾞ(STD→NW)","オプション","一般公開",null,"A296CPT6","減価償却応援　５ユーザ　アップグレード","減価償却応援　５ユーザ　アップグレード",300000,"一括","ｽﾀﾝﾄﾞｱﾛﾝ版：NW版5Uｱｯﾌﾟｸﾞﾚｰﾄﾞ、※ﾈｯﾄﾜｰｸ基本P 5Uスタンドアロン必須","2012-02-06",null,0.65,195000]
[null,"PKG","会計","Glacio連携用\nミツイワ情報様用","基本","非公開",null,"A296CQVA","ＧＬＯＶＩＡ　ｓｍａｒｔ　会計　きらら　Ｖ１　メディアパック　Glacio連携用","ＧＬＯＶＩＡ　ｓｍａｒｔ　会計　きらら　Ｖ１　メディアパック　Glacio連携用",5000,"一括","・メディアは、通常商品にGlacio連携DVDを1枚追加したもの\n・ME&Sは通常商品を利用","2012-04-11",null,0.63,3150]
[null,"PKG","会計",null,"基本","非公開",null,"A2969QVB","ＧＬＯＶＩＡ　ｓｍａｒｔ　会計　きらら　Ｖ１　基本ライセンス（２ユーザライセンス付）　Glacio連携用","ＧＬＯＶＩＡ　ｓｍａｒｔ　会計　きらら　Ｖ１　基本ライセンス（２ユーザライセンス付）　Glacio連携用",460000,"一括",null,"2012-04-11",null,0.63,289800]
[null,"PKG","人事給与","Glacio連携用\nミツイワ情報様用","基本","非公開",null,"A296CQVC","ＧＬＯＶＩＡ　ｓｍａｒｔ　きらら　人事給与　Ｖ１　メディアパック　Glacio連携用","ＧＬＯＶＩＡ　ｓｍａｒｔ　きらら　人事給与　Ｖ１　メディアパック　Glacio連携用",5000,"一括","・メディアは、通常商品にGlacio連携DVDを1枚追加したもの\n・ME&Sは通常商品を利用","2012-04-11",null,0.63,3150]
[null,"PKG","人事給与",null,"基本","非公開",null,"A2969QVD","ＧＬＯＶＩＡ　ｓｍａｒｔ　きらら　人事給与　Ｖ１　基本ライセンス（２ユーザライセンス付）　Glacio連携用","ＧＬＯＶＩＡ　ｓｍａｒｔ　きらら　人事給与　Ｖ１　基本ライセンス（２ユーザライセンス付）　Glacio連携用",460000,"一括",null,"2012-04-11",null,0.63,289800]
[null,"PKG","販売","通常商品","基本","一般公開",null,"A296CRS8","ＧＬＯＶＩＡ　ｓｍａｒｔ　きらら　販売　Ｖ１　スタンダード　（１ユーザライセンス付）","ＧＬＯＶＩＡ　ｓｍａｒｔ　きらら　販売　Ｖ１　スタンダード　（１ユーザライセンス付）",1500000,"一括","・メディア媒体（DVD-ROM）","2012-09-21",null,0.63,945000]
[null,"PKG","販売","通常商品","オプション","一般公開",null,"A2969RS9","ＧＬＯＶＩＡ　ｓｍａｒｔ　きらら　販売　Ｖ１　スタンダード　サーバ増設ライセンス","ＧＬＯＶＩＡ　ｓｍａｒｔ　きらら　販売　Ｖ１　スタンダード　サーバ増設ライセンス",1500000,"一括","・ライセンス情報","2012-09-21",null,0.63,945000]
[null,"PKG","販売","通常商品","オプション","一般公開",null,"A2969RSA","ＧＬＯＶＩＡ　ｓｍａｒｔ　きらら　販売　Ｖ１　スタンダード　追加１ユーザライセンス","ＧＬＯＶＩＡ　ｓｍａｒｔ　きらら　販売　Ｖ１　スタンダード　追加１ユーザライセンス",50000,"一括","・ライセンス情報","2012-09-21",null,0.63,31500]
[null,"PKG-ME&S","販売","通常商品","基本","一般公開",null,"A2960RS8L1","ＧＬＯＶＩＡ　ｓｍａｒｔ　きらら　販売　Ｖ１　スタンダード（１ユーザライセンス付き）　レベルアップサービス","ＧＬＯＶＩＡ　ｓｍａｒｔ　きらら　販売　Ｖ１　スタンダード（１ユーザライセンス付き）　レベルアップサービス",225000,"年額",null,"2012-09-21",null,0.63,141750]
[null,"PKG-ME&S","販売","通常商品","オプション","一般公開",null,"A2960RS9L1","ＧＬＯＶＩＡ　ｓｍａｒｔ　きらら　販売　Ｖ１　スタンダード　サーバ増設ライセンス　レベルアップサービス","ＧＬＯＶＩＡ　ｓｍａｒｔ　きらら　販売　Ｖ１　スタンダード　サーバ増設ライセンス　レベルアップサービス",225000,"年額",null,"2012-09-21",null,0.63,141750]
[null,"PKG-ME&S","販売","通常商品","オプション","一般公開",null,"A2960RSAL1","ＧＬＯＶＩＡ　ｓｍａｒｔ　きらら　販売　Ｖ１　スタンダード　追加１ユーザライセンス　レベルアップサービス","ＧＬＯＶＩＡ　ｓｍａｒｔ　きらら　販売　Ｖ１　スタンダード　追加１ユーザライセンス　レベルアップサービス",7500,"年額",null,"2012-09-21",null,0.63,4720]
[null,"PKG-ME&S","販売","通常商品","基本","一般公開",null,"A2960RS8L","ＧＬＯＶＩＡ　ｓｍａｒｔ　きらら　販売　Ｖ１　スタンダード（１ユーザライセンス付き）　レベルアップサービス","ＧＬＯＶＩＡ　ｓｍａｒｔ　きらら　販売　Ｖ１　スタンダード（１ユーザライセンス付き）　レベルアップサービス",22500,"月額",null,"2012-09-21",null,0.63,14170]
[null,"PKG-ME&S","販売","通常商品","オプション","一般公開",null,"A2960RS9L","ＧＬＯＶＩＡ　ｓｍａｒｔ　きらら　販売　Ｖ１　スタンダード　サーバ増設ライセンス　レベルアップサービス","ＧＬＯＶＩＡ　ｓｍａｒｔ　きらら　販売　Ｖ１　スタンダード　サーバ増設ライセンス　レベルアップサービス",22500,"月額",null,"2012-09-21",null,0.63,14170]
[null,"PKG-ME&S","販売","通常商品","オプション","一般公開",null,"A2960RSAL","ＧＬＯＶＩＡ　ｓｍａｒｔ　きらら　販売　Ｖ１　スタンダード　追加１ユーザライセンス　レベルアップサービス","ＧＬＯＶＩＡ　ｓｍａｒｔ　きらら　販売　Ｖ１　スタンダード　追加１ユーザライセンス　レベルアップサービス",750,"月額",null,"2012-09-21",null,0.63,470]
[null,"PKG","販売","エントリーパック（販売・会計）","基本","非公開",null,"A296CRSB","ＧＬＯＶＩＡ　ｓｍａｒｔ　きらら　販売　Ｖ１　販売・会計エントリパック　（５ユーザライセンス付）","ＧＬＯＶＩＡ　ｓｍａｒｔ　きらら　販売　Ｖ１　販売・会計エントリパック　（５ユーザライセンス付）",750000,"一括","・メディア媒体（DVD-ROM）　　　※通常版にアップグレード可能","2012-09-21",null,0.63,472500]
[null,"PKG-ME&S","販売","エントリーパック（販売・会計）","基本","非公開","【販売終了】　","A2960RSBM","ＧＬＯＶＩＡ　ｓｍａｒｔ　きらら　販売　Ｖ１　販売・会計エントリパック（５ユーザライセンス付）　プログラムサポート","【販売終了】　ＧＬＯＶＩＡ　ｓｍａｒｔ　きらら　販売　Ｖ１　販売・会計エントリパック（５ユーザライセンス付）　プログラムサポート",113000,"年額",null,null,null,0.63,71190]
[null,"PKG-ME&S","販売","エントリーパック（販売・会計）","基本","非公開","【販売終了】　","A2960RSBM1","ＧＬＯＶＩＡ　ｓｍａｒｔ　きらら　販売　Ｖ１　販売・会計エントリパック（５ユーザライセンス付）　プログラムサポート","【販売終了】　ＧＬＯＶＩＡ　ｓｍａｒｔ　きらら　販売　Ｖ１　販売・会計エントリパック（５ユーザライセンス付）　プログラムサポート",11300,"月額",null,null,null,0.63,7110]
[null,"PKG-ME&S","販売","エントリーパック（販売・会計）","基本","非公開",null,"A2960RSBL1","ＧＬＯＶＩＡ　ｓｍａｒｔ　きらら　販売　Ｖ１　販売・会計エントリパック（５ユーザラインセス付）　レベルアップサービス","ＧＬＯＶＩＡ　ｓｍａｒｔ　きらら　販売　Ｖ１　販売・会計エントリパック（５ユーザラインセス付）　レベルアップサービス",113000,"年額",null,"2012-09-21",null,0.63,71190]
[null,"PKG-ME&S","販売","エントリーパック（販売・会計）","基本","非公開",null,"A2960RSBL","ＧＬＯＶＩＡ　ｓｍａｒｔ　きらら　販売　Ｖ１　販売・会計エントリパック（５ユーザラインセス付）　レベルアップサービス","ＧＬＯＶＩＡ　ｓｍａｒｔ　きらら　販売　Ｖ１　販売・会計エントリパック（５ユーザラインセス付）　レベルアップサービス",11300,"月額",null,"2012-09-21",null,0.63,7110]
[null,"PKG","販売","エントリパックの追加ユーザライセンス。隠し型名","オプション","非公開",null,"A2969RSC","ＧＬＯＶＩＡ　ｓｍａｒｔ　きらら　販売　Ｖ１　販売・会計エントリパック　追加１ユーザライセンス","ＧＬＯＶＩＡ　ｓｍａｒｔ　きらら　販売　Ｖ１　販売・会計エントリパック　追加１ユーザライセンス",250000,"一括",null,"2013-03-14",null,0.63,157500]
[null,"PKG-ME&S","販売","エントリパックの追加ユーザライセンスのME&S。隠し型名","オプション","非公開","【販売終了】　","A2960RSCM","ＧＬＯＶＩＡ　ｓｍａｒｔ　きらら　販売　Ｖ１　販売・会計エントリパック　追加１ユーザライセンス　プログラムサポート","【販売終了】　ＧＬＯＶＩＡ　ｓｍａｒｔ　きらら　販売　Ｖ１　販売・会計エントリパック　追加１ユーザライセンス　プログラムサポート",37500,"年額",null,null,null,0.63,23620]
[null,"PKG-ME&S","販売","エントリパックの追加ユーザライセンスのME&S。隠し型名","オプション","非公開","【販売終了】　","A2960RSCM1","ＧＬＯＶＩＡ　ｓｍａｒｔ　きらら　販売　Ｖ１　販売・会計エントリパック　追加１ユーザライセンス　プログラムサポート","【販売終了】　ＧＬＯＶＩＡ　ｓｍａｒｔ　きらら　販売　Ｖ１　販売・会計エントリパック　追加１ユーザライセンス　プログラムサポート",3750,"月額",null,null,null,0.63,2360]
[null,"PKG-ME&S","販売","エントリパックの追加ユーザライセンスのME&S。隠し型名","オプション","非公開",null,"A2960RSCL1","ＧＬＯＶＩＡ　ｓｍａｒｔ　きらら　販売　Ｖ１　販売・会計エントリパック　追加１ユーザライセンス　レベルアップサービス","ＧＬＯＶＩＡ　ｓｍａｒｔ　きらら　販売　Ｖ１　販売・会計エントリパック　追加１ユーザライセンス　レベルアップサービス",37500,"年額",null,"2013-03-14",null,0.63,23620]
[null,"PKG-ME&S","販売","エントリパックの追加ユーザライセンスのME&S。隠し型名","オプション","非公開",null,"A2960RSCL","ＧＬＯＶＩＡ　ｓｍａｒｔ　きらら　販売　Ｖ１　販売・会計エントリパック　追加１ユーザライセンス　レベルアップサービス","ＧＬＯＶＩＡ　ｓｍａｒｔ　きらら　販売　Ｖ１　販売・会計エントリパック　追加１ユーザライセンス　レベルアップサービス",3750,"月額",null,"2013-03-14",null,0.63,2360]
[null,"PKG","販売","エントリーパック→スタンダード移行","オプション","非公開",null,"A296CTDT","ＧＬＯＶＩＡ　ｓｍａｒｔ　きらら　販売　Ｖ１　スタンダード（５ＵＬ付）エントリパック移行",{"$f":"CONCATENATE(G112,I112)","v":"ＧＬＯＶＩＡ　ｓｍａｒｔ　きらら　販売　Ｖ１　スタンダード（５ＵＬ付）エントリパック移行"},950000,"一括",null,"2013-03-14",null,0.63,598500]
[null,"PKG-ME&S","販売","エントリーパック→スタンダード移行","オプション","非公開",null,"A2960TDTL1","ＧＬＯＶＩＡ　ｓｍａｒｔ　きらら　販売　Ｖ１　スタンダード（５ＵＬ付）エントリパック移行　レベルアップサービス",{"$f":"CONCATENATE(G113,I113)","v":"ＧＬＯＶＩＡ　ｓｍａｒｔ　きらら　販売　Ｖ１　スタンダード（５ＵＬ付）エントリパック移行　レベルアップサービス"},255000,"年額",null,"2013-03-14",null,0.63,160650]
[null,"PKG-ME&S","販売","エントリーパック→スタンダード移行","オプション","非公開",null,"A2960TDTL","ＧＬＯＶＩＡ　ｓｍａｒｔ　きらら　販売　Ｖ１　スタンダード（５ＵＬ付）エントリパック移行　レベルアップサービス",{"$f":"CONCATENATE(G114,I114)","v":"ＧＬＯＶＩＡ　ｓｍａｒｔ　きらら　販売　Ｖ１　スタンダード（５ＵＬ付）エントリパック移行　レベルアップサービス"},25500,"月額",null,"2013-03-14",null,0.63,{"$f":"ROUNDDOWN(K114*P114,-1)","v":16060}]
[null,"PKG","会計","エントリーパック（販売・会計）","基本","非公開",null,"A2969RSD","ＧＬＯＶＩＡ　ｓｍａｒｔ　きらら　会計　Ｖ１　販売・会計エントリパック　（１ユーザライセンス付）","ＧＬＯＶＩＡ　ｓｍａｒｔ　きらら　会計　Ｖ１　販売・会計エントリパック　（１ユーザライセンス付）",145000,"一括","・ライセンス情報（会計メディアパックが必須）※通常版にアップグレード可能","2012-09-21",null,0.63,91350]
[null,"PKG-ME&S","会計","エントリーパック（販売・会計）","基本","非公開",null,"A2960RSDM1","ＧＬＯＶＩＡ　ｓｍａｒｔ　きらら　会計　Ｖ１　販売・会計エントリパック　（１ユーザライセンス付）　プログラムサポート","ＧＬＯＶＩＡ　ｓｍａｒｔ　きらら　会計　Ｖ１　販売・会計エントリパック　（１ユーザライセンス付）　プログラムサポート",22000,"年額",null,"2012-09-21",null,0.63,13860]
[null,"PKG-ME&S","会計","エントリーパック（販売・会計）","基本","非公開",null,"A2960RSDM","ＧＬＯＶＩＡ　ｓｍａｒｔ　きらら　会計　Ｖ１　販売・会計エントリパック　（１ユーザライセンス付）　プログラムサポート","ＧＬＯＶＩＡ　ｓｍａｒｔ　きらら　会計　Ｖ１　販売・会計エントリパック　（１ユーザライセンス付）　プログラムサポート",2200,"月額",null,"2012-09-21",null,0.63,1380]
[null,"PKG","会計","エントリーパック→スタンダード移行","オプション","非公開",null,"A2969TDS","ＧＬＯＶＩＡ　ｓｍａｒｔ　きらら　会計　Ｖ１　基本ライセンス（２ＵＬ付）エントリパック移行",{"$f":"CONCATENATE(G118,I118)","v":"ＧＬＯＶＩＡ　ｓｍａｒｔ　きらら　会計　Ｖ１　基本ライセンス（２ＵＬ付）エントリパック移行"},315000,"一括",null,"2013-03-14",null,0.63,198450]
[null,"SaaS","会計","BP／Ｓ移行用","基本","非公開","【販売停止2015-10】","SVS002784","ＧＬＯＶＩＡ　ｓｍａｒｔ　きらら　会計　業務アプリケーション利用サービス　ミニベーシックプラン（ＢＰ／Ｓ移行用：１ＩＤ）","【販売停止2015-10】ＧＬＯＶＩＡ　ｓｍａｒｔ　きらら　会計　業務アプリケーション利用サービス　ミニベーシックプラン（ＢＰ／Ｓ移行用：１ＩＤ）",{"$f":"10000/2","v":5000},"月額","・利用可能日：毎日\n・利用時間：07:00～24:00\n※Q/Aあり（24回/年まで）\n１ID限定商品\n","2012-11-21",null,0.75,3750]
[null,"SaaS","会計","BP／Ｓ移行用","オプション","非公開",null,"SVS002797","ＧＬＯＶＩＡ　ｓｍａｒｔ　きらら　会計　業務アプリケーション利用サービス　ミニベーシック手形管理オプション（ＢＰ／Ｓ移行用）","ＧＬＯＶＩＡ　ｓｍａｒｔ　きらら　会計　業務アプリケーション利用サービス　ミニベーシック手形管理オプション（ＢＰ／Ｓ移行用）",{"$f":"5000/2","v":2500},"月額","ミニベーシック用の手形管理OP","2012-11-21",null,0.75,1870]
[null,"SaaS","人事給与","BP／Ｓ移行用","基本","非公開","【販売停止2015-10】","SVS002724","ＧＬＯＶＩＡ　ｓｍａｒｔ　きらら　人事給与　業務アプリケーション利用サービス　ミニベーシックプラン（ＢＰ／Ｓ移行用：１ＩＤ、従業員５０名）","【販売停止2015-10】ＧＬＯＶＩＡ　ｓｍａｒｔ　きらら　人事給与　業務アプリケーション利用サービス　ミニベーシックプラン（ＢＰ／Ｓ移行用：１ＩＤ、従業員５０名）",{"$f":"10000/2","v":5000},"月額","１ID限定商品\n・利用可能日：毎日\n・利用時間：07:00～24:00\n・1ユーザ限定\n・従業員50名付き\n※Q/Aあり（24回/年まで）","2012-11-21",null,0.75,3750]
[null,"SaaS","人事給与","BP／Ｓ移行用","オプション","非公開",null,"SVS002725","ＧＬＯＶＩＡ　ｓｍａｒｔ　きらら　人事給与　業務アプリケーション利用サービス　ミニベーシック利用者２５追加オプション（ＢＰ／Ｓ移行用）","ＧＬＯＶＩＡ　ｓｍａｒｔ　きらら　人事給与　業務アプリケーション利用サービス　ミニベーシック利用者２５追加オプション（ＢＰ／Ｓ移行用）",{"$f":"3500/2","v":1750},"月額","※ミニベーシック用（従業員 基本＋25名*2=100名まで）","2012-11-21",null,0.75,1310]
[null,"SaaS","会計","新プラン（ライト／ベーシックプラン）","基本","一般公開","【販売停止2015-10】","SVS006900","ＧＬＯＶＩＡ　ｓｍａｒｔ　きらら　会計　利用サービス　ライトプラン（１ＩＤ）",{"$f":"CONCATENATE(G123,I123)","v":"【販売停止2015-10】ＧＬＯＶＩＡ　ｓｍａｒｔ　きらら　会計　利用サービス　ライトプラン（１ＩＤ）"},10000,"月額",null,"2013-04-01",null,0.75,7500]
[null,"SaaS","会計","新プラン（ライト／ベーシックプラン）","オプション","一般公開",null,"SVS006901","ＧＬＯＶＩＡ　ｓｍａｒｔ　きらら　会計　利用サービス　ライト利用者追加（１ＩＤ）オプション",{"$f":"CONCATENATE(G124,I124)","v":"ＧＬＯＶＩＡ　ｓｍａｒｔ　きらら　会計　利用サービス　ライト利用者追加（１ＩＤ）オプション"},3500,"月額",null,"2013-04-01",null,0.75,2620]
[null,"SaaS","会計","新プラン（ライト／ベーシックプラン）","オプション","一般公開",null,"SVS006902","ＧＬＯＶＩＡ　ｓｍａｒｔ　きらら　会計　利用サービス　ライト手形管理オプション",{"$f":"CONCATENATE(G125,I125)","v":"ＧＬＯＶＩＡ　ｓｍａｒｔ　きらら　会計　利用サービス　ライト手形管理オプション"},5000,"月額",null,"2013-04-01",null,0.75,3750]
[null,"SaaS","会計","新プラン（ライト／ベーシックプラン）","オプション","一般公開",null,"SVS006903","ＧＬＯＶＩＡ　ｓｍａｒｔ　きらら　会計　利用サービス　ライトデータ参照期間拡張（過去５会計年度）オプション","ＧＬＯＶＩＡ　ｓｍａｒｔ　きらら　会計　利用サービス　ライトデータ参照期間拡張（過去５会計年度）オプション",3000,"月額",null,"2013-04-01",null,0.75,2250]
[null,"SaaS","会計","新プラン（ライト／ベーシックプラン）","オプション","一般公開",null,"SVS006904","ＧＬＯＶＩＡ　ｓｍａｒｔ　きらら　会計　利用サービス　ライトデータ参照期間拡張（過去７会計年度）オプション","ＧＬＯＶＩＡ　ｓｍａｒｔ　きらら　会計　利用サービス　ライトデータ参照期間拡張（過去７会計年度）オプション",5000,"月額",null,"2013-04-01",null,0.75,3750]
[null,"SaaS","会計","新プラン（ライト／ベーシックプラン）","オプション","一般公開",null,"SVS006905","ＧＬＯＶＩＡ　ｓｍａｒｔ　きらら　会計　利用サービス　ライトデータ参照期間拡張（過去１０会計年度）オプション","ＧＬＯＶＩＡ　ｓｍａｒｔ　きらら　会計　利用サービス　ライトデータ参照期間拡張（過去１０会計年度）オプション",8000,"月額",null,"2013-04-01",null,0.75,6000]
[null,"SaaS","会計","新プラン（ライト／ベーシックプラン）","基本","一般公開","【販売停止2015-10】","SVS006910","ＧＬＯＶＩＡ　ｓｍａｒｔ　きらら　会計　利用サービス　スタンダードプラン（２ＩＤ）","【販売停止2015-10】ＧＬＯＶＩＡ　ｓｍａｒｔ　きらら　会計　利用サービス　スタンダードプラン（２ＩＤ）",22000,"月額",null,"2013-04-01",null,0.75,16500]
[null,"SaaS","会計","新プラン（ライト／ベーシックプラン）","オプション","一般公開",null,"SVS006911","ＧＬＯＶＩＡ　ｓｍａｒｔ　きらら　会計　利用サービス　スタンダード利用者追加（１ＩＤ）オプション","ＧＬＯＶＩＡ　ｓｍａｒｔ　きらら　会計　利用サービス　スタンダード利用者追加（１ＩＤ）オプション",8000,"月額",null,"2013-04-01",null,0.75,6000]
[null,"SaaS","会計","新プラン（ライト／ベーシックプラン）","オプション","一般公開",null,"SVS006912","ＧＬＯＶＩＡ　ｓｍａｒｔ　きらら　会計　利用サービス　スタンダード手形管理オプション","ＧＬＯＶＩＡ　ｓｍａｒｔ　きらら　会計　利用サービス　スタンダード手形管理オプション",10000,"月額",null,"2013-04-01",null,0.75,7500]
[null,"SaaS","会計","新プラン（ライト／ベーシックプラン）","オプション","一般公開",null,"SVS006913","ＧＬＯＶＩＡ　ｓｍａｒｔ　きらら　会計　利用サービス　スタンダードデータ参照期間拡張（過去５会計年度）オプション","ＧＬＯＶＩＡ　ｓｍａｒｔ　きらら　会計　利用サービス　スタンダードデータ参照期間拡張（過去５会計年度）オプション",6000,"月額",null,"2013-04-01",null,0.75,4500]
[null,"SaaS","会計","新プラン（ライト／ベーシックプラン）","オプション","一般公開",null,"SVS006914","ＧＬＯＶＩＡ　ｓｍａｒｔ　きらら　会計　利用サービス　スタンダードデータ参照期間拡張（過去７会計年度）オプション","ＧＬＯＶＩＡ　ｓｍａｒｔ　きらら　会計　利用サービス　スタンダードデータ参照期間拡張（過去７会計年度）オプション",9000,"月額",null,"2013-04-01",null,0.75,6750]
[null,"SaaS","会計","新プラン（ライト／ベーシックプラン）","オプション","一般公開",null,"SVS006915","ＧＬＯＶＩＡ　ｓｍａｒｔ　きらら　会計　利用サービス　スタンダードデータ参照期間拡張（過去１０会計年度）オプション","ＧＬＯＶＩＡ　ｓｍａｒｔ　きらら　会計　利用サービス　スタンダードデータ参照期間拡張（過去１０会計年度）オプション",13000,"月額",null,"2013-04-01",null,0.75,9750]
[null,"SaaS","会計","新プラン（ライト／ベーシックプラン）","オプション","一般公開",null,"SVS006916","ＧＬＯＶＩＡ　ｓｍａｒｔ　きらら　会計　利用サービス　スタンダードリモートスポット支援オプション","ＧＬＯＶＩＡ　ｓｍａｒｔ　きらら　会計　利用サービス　スタンダードリモートスポット支援オプション",10000,"月額",null,"2013-04-01",null,0.75,7500]
[null,"SaaS","人事給与","新プラン（ライト／ベーシックプラン）","基本","一般公開","【販売停止2015-10】","SVS006950","ＧＬＯＶＩＡ　ｓｍａｒｔ　きらら　人事給与　利用サービス　ライトプラン（３ＩＤ、従業員５０名）","【販売停止2015-10】ＧＬＯＶＩＡ　ｓｍａｒｔ　きらら　人事給与　利用サービス　ライトプラン（３ＩＤ、従業員５０名）",10000,"月額",null,"2013-04-01",null,0.75,7500]
[null,"SaaS","人事給与","新プラン（ライト／ベーシックプラン）","オプション","一般公開",null,"SVS006951","ＧＬＯＶＩＡ　ｓｍａｒｔ　きらら　人事給与　利用サービス　ライト従業員２５名追加オプション","ＧＬＯＶＩＡ　ｓｍａｒｔ　きらら　人事給与　利用サービス　ライト従業員２５名追加オプション",3500,"月額",null,"2013-04-01",null,0.75,2620]
[null,"SaaS","人事給与","新プラン（ライト／ベーシックプラン）","オプション","一般公開",null,"SVS006952","ＧＬＯＶＩＡ　ｓｍａｒｔ　きらら　人事給与　利用サービス　ライトデータ参照期間拡張（過去５年）オプション","ＧＬＯＶＩＡ　ｓｍａｒｔ　きらら　人事給与　利用サービス　ライトデータ参照期間拡張（過去５年）オプション",3000,"月額",null,"2013-04-01",null,0.75,2250]
[null,"SaaS","人事給与","新プラン（ライト／ベーシックプラン）","オプション","一般公開",null,"SVS006953","ＧＬＯＶＩＡ　ｓｍａｒｔ　きらら　人事給与　利用サービス　ライトデータ参照期間拡張（過去７年）オプション","ＧＬＯＶＩＡ　ｓｍａｒｔ　きらら　人事給与　利用サービス　ライトデータ参照期間拡張（過去７年）オプション",5000,"月額",null,"2013-04-01",null,0.75,3750]
[null,"SaaS","人事給与","新プラン（ライト／ベーシックプラン）","オプション","一般公開",null,"SVS006954","ＧＬＯＶＩＡ　ｓｍａｒｔ　きらら　人事給与　利用サービス　ライトデータ参照期間拡張（過去１０年）オプション","ＧＬＯＶＩＡ　ｓｍａｒｔ　きらら　人事給与　利用サービス　ライトデータ参照期間拡張（過去１０年）オプション",8000,"月額",null,"2013-04-01",null,0.75,6000]
[null,"SaaS","人事給与","新プラン（ライト／ベーシックプラン）","基本","一般公開","【販売停止2015-10】","SVS006960","ＧＬＯＶＩＡ　ｓｍａｒｔ　きらら　人事給与　利用サービス　スタンダードプラン（５ＩＤ、従業員１００名）","【販売停止2015-10】ＧＬＯＶＩＡ　ｓｍａｒｔ　きらら　人事給与　利用サービス　スタンダードプラン（５ＩＤ、従業員１００名）",22000,"月額",null,"2013-04-01",null,0.75,16500]
[null,"SaaS","人事給与","新プラン（ライト／ベーシックプラン）","オプション","一般公開",null,"SVS006961","ＧＬＯＶＩＡ　ｓｍａｒｔ　きらら　人事給与　利用サービス　スタンダード従業員５０名追加オプション","ＧＬＯＶＩＡ　ｓｍａｒｔ　きらら　人事給与　利用サービス　スタンダード従業員５０名追加オプション",10000,"月額",null,"2013-04-01",null,0.75,7500]
[null,"SaaS","人事給与","新プラン（ライト／ベーシックプラン）","オプション","一般公開",null,"SVS006962","ＧＬＯＶＩＡ　ｓｍａｒｔ　きらら　人事給与　利用サービス　スタンダードデータ参照期間拡張（過去５年）オプション","ＧＬＯＶＩＡ　ｓｍａｒｔ　きらら　人事給与　利用サービス　スタンダードデータ参照期間拡張（過去５年）オプション",6000,"月額",null,"2013-04-01",null,0.75,4500]
[null,"SaaS","人事給与","新プラン（ライト／ベーシックプラン）","オプション","一般公開",null,"SVS006963","ＧＬＯＶＩＡ　ｓｍａｒｔ　きらら　人事給与　利用サービス　スタンダードデータ参照期間拡張（過去７年）オプション","ＧＬＯＶＩＡ　ｓｍａｒｔ　きらら　人事給与　利用サービス　スタンダードデータ参照期間拡張（過去７年）オプション",9000,"月額",null,"2013-04-01",null,0.75,6750]
[null,"SaaS","人事給与","新プラン（ライト／ベーシックプラン）","オプション","一般公開",null,"SVS006964","ＧＬＯＶＩＡ　ｓｍａｒｔ　きらら　人事給与　利用サービス　スタンダードデータ参照期間拡張（過去１０年）オプション","ＧＬＯＶＩＡ　ｓｍａｒｔ　きらら　人事給与　利用サービス　スタンダードデータ参照期間拡張（過去１０年）オプション",13000,"月額",null,"2013-04-01",null,0.75,9750]
[null,"SaaS","人事給与","新プラン（ライト／ベーシックプラン）","オプション","一般公開",null,"SVS006965","ＧＬＯＶＩＡ　ｓｍａｒｔ　きらら　人事給与　利用サービス　スタンダードリモートスポット支援オプション","ＧＬＯＶＩＡ　ｓｍａｒｔ　きらら　人事給与　利用サービス　スタンダードリモートスポット支援オプション",10000,"月額",null,"2013-04-01",null,0.75,7500]
[null,"PKG","会計","きらら会計V1.1","基本","一般公開",null,"A296CVKL","ＧＬＯＶＩＡ　ｓｍａｒｔ　きらら　会計　∨１．１　メディアパック","ＧＬＯＶＩＡ　ｓｍａｒｔ　きらら　会計　∨１．１　メディアパック",5000,"一括",null,"2014-01-31",{"$f":"K147*0.9","v":4500},0.63,{"$f":"ROUNDDOWN(O147*P147,-1)","v":2830}]
[null,"PKG","会計",null,"基本","一般公開",null,"A2969VKM","ＧＬＯＶＩＡ　ｓｍａｒｔ　きらら　会計　∨１．１　基本ライセンス（１ユーザライセンス付）","ＧＬＯＶＩＡ　ｓｍａｒｔ　きらら　会計　∨１．１　基本ライセンス（１ユーザライセンス付）",360000,"一括",null,"2014-01-31",{"$f":"K148*0.9","v":324000},0.63,{"$f":"ROUNDDOWN(O148*P148,-1)","v":204120}]
[null,"PKG","会計",null,"オプション","一般公開",null,"A2969VKN","ＧＬＯＶＩＡ　ｓｍａｒｔ　きらら　会計　∨１．１　追加１ユーザライセンス",{"$f":"CONCATENATE(G149,I149)","v":"ＧＬＯＶＩＡ　ｓｍａｒｔ　きらら　会計　∨１．１　追加１ユーザライセンス"},360000,"一括",null,"2014-01-31",{"$f":"K149*0.9","v":324000},0.63,{"$f":"ROUNDDOWN(O149*P149,-1)","v":204120}]
[null,"PKG","会計",null,"オプション","一般公開",null,"A2969VKP","ＧＬＯＶＩＡ　ｓｍａｒｔ　きらら　会計　∨１．１　手形管理オプション",{"$f":"CONCATENATE(G150,I150)","v":"ＧＬＯＶＩＡ　ｓｍａｒｔ　きらら　会計　∨１．１　手形管理オプション"},360000,"一括",null,"2014-01-31",{"$f":"K150*0.9","v":324000},0.63,{"$f":"ROUNDDOWN(O150*P150,-1)","v":204120}]
[null,"PKG","会計",null,"オプション","一般公開",null,"A51491HS","ＧＬＯＶＩＡ　ｓｍａｒｔ　きらら　会計　Ｖ１．１　支払管理オプション","ＧＬＯＶＩＡ　ｓｍａｒｔ　きらら　会計　Ｖ１．１　支払管理オプション",360000,"一括",null,"2015-12-24",null,0.8,{"$f":"ROUNDDOWN(K151*P151,-1)","v":288000}]
[null,"PKG-ME&S","会計",null,"基本","一般公開",null,"A2960VKMM1","ＧＬＯＶＩＡ　ｓｍａｒｔ　きらら　会計　∨１．１　基本ライセンス（１ユーザライセンス付）　プログラムサポート","ＧＬＯＶＩＡ　ｓｍａｒｔ　きらら　会計　∨１．１　基本ライセンス（１ユーザライセンス付）　プログラムサポート",54000,"年額",null,"2014-01-31",null,0.8,43200]
[null,"PKG-ME&S","会計",null,"オプション","一般公開",null,"A2960VKNM1","ＧＬＯＶＩＡ　ｓｍａｒｔ　きらら　会計　∨１．１　追加１ユーザライセンス　プログラムサポート",{"$f":"CONCATENATE(G153,I153)","v":"ＧＬＯＶＩＡ　ｓｍａｒｔ　きらら　会計　∨１．１　追加１ユーザライセンス　プログラムサポート"},54000,"年額",null,"2014-01-31",null,0.8,43200]
[null,"PKG-ME&S","会計",null,"オプション","一般公開",null,"A2960VKPM1","ＧＬＯＶＩＡ　ｓｍａｒｔ　きらら　会計　∨１．１　手形管理オプション　プログラムサポート",{"$f":"CONCATENATE(G154,I154)","v":"ＧＬＯＶＩＡ　ｓｍａｒｔ　きらら　会計　∨１．１　手形管理オプション　プログラムサポート"},54000,"年額",null,"2014-01-31",null,0.8,43200]
[null,"PKG-ME&S","会計",null,"オプション","一般公開",null,"A51401HSM1","ＧＬＯＶＩＡ　ｓｍａｒｔ　きらら　会計　Ｖ１．１　支払管理オプション　プログラムサポート","ＧＬＯＶＩＡ　ｓｍａｒｔ　きらら　会計　Ｖ１．１　支払管理オプション　プログラムサポート",54000,"年額",null,"2015-12-24",null,0.8,43200]
[null,"PKG-ME&S","会計",null,"基本","一般公開",null,"A2960VKMM","ＧＬＯＶＩＡ　ｓｍａｒｔ　きらら　会計　∨１．１　基本ライセンス（１ユーザライセンス付）　プログラムサポート",{"$f":"CONCATENATE(G156,I156)","v":"ＧＬＯＶＩＡ　ｓｍａｒｔ　きらら　会計　∨１．１　基本ライセンス（１ユーザライセンス付）　プログラムサポート"},5400,"月額",null,"2014-01-31",null,0.8,4320]
[null,"PKG-ME&S","会計",null,"オプション","一般公開",null,"A2960VKNM","ＧＬＯＶＩＡ　ｓｍａｒｔ　きらら　会計　∨１．１　追加１ユーザライセンス　プログラムサポート",{"$f":"CONCATENATE(G157,I157)","v":"ＧＬＯＶＩＡ　ｓｍａｒｔ　きらら　会計　∨１．１　追加１ユーザライセンス　プログラムサポート"},5400,"月額",null,"2014-01-31",{"$f":"K157*0.9","v":4860},0.63,{"$f":"ROUNDDOWN(O157*P157,-1)","v":3060}]
[null,"PKG-ME&S","会計",null,"オプション","一般公開",null,"A2960VKPM","ＧＬＯＶＩＡ　ｓｍａｒｔ　きらら　会計　∨１．１　手形管理オプション　プログラムサポート","ＧＬＯＶＩＡ　ｓｍａｒｔ　きらら　会計　∨１．１　手形管理オプション　プログラムサポート",5400,"月額",null,"2014-01-31",4860,0.63,3060]
[null,"PKG-ME&S","会計",null,"オプション","一般公開",null,"A51401HSM","ＧＬＯＶＩＡ　ｓｍａｒｔ　きらら　会計　Ｖ１．１　支払管理オプション　プログラムサポート","ＧＬＯＶＩＡ　ｓｍａｒｔ　きらら　会計　Ｖ１．１　支払管理オプション　プログラムサポート",5400,"月額",null,"2015-12-24",4860,0.63,3060]
[null,"PKG","会計","きらら会計V1.1 BP移行","基本","非公開",null,"A2969VKQ","ＧＬＯＶＩＡ　ｓｍａｒｔ　きらら　会計　∨１．１　基本ライセンス（１ユーザライセンス付）　ＢＰ移行",{"$f":"CONCATENATE(G160,I160)","v":"ＧＬＯＶＩＡ　ｓｍａｒｔ　きらら　会計　∨１．１　基本ライセンス（１ユーザライセンス付）　ＢＰ移行"},180000,"一括",null,"2014-01-31",162000,0.63,102060]
[null,"PKG","会計",null,"オプション","非公開",null,"A2969VKR","ＧＬＯＶＩＡ　ｓｍａｒｔ　きらら　会計　∨１．１　追加１ユーザライセンス　ＢＰ移行",{"$f":"CONCATENATE(G161,I161)","v":"ＧＬＯＶＩＡ　ｓｍａｒｔ　きらら　会計　∨１．１　追加１ユーザライセンス　ＢＰ移行"},180000,"一括",null,"2014-01-31",162000,0.63,102060]
[null,"PKG","会計",null,"オプション","非公開",null,"A2969VKS","ＧＬＯＶＩＡ　ｓｍａｒｔ　きらら　会計　∨１．１　手形管理オプション　ＢＰ移行",{"$f":"CONCATENATE(G162,I162)","v":"ＧＬＯＶＩＡ　ｓｍａｒｔ　きらら　会計　∨１．１　手形管理オプション　ＢＰ移行"},180000,"一括",null,"2014-01-31",162000,0.63,102060]
[null,"PKG","会計",null,"オプション","非公開",null,"A51491HT","ＧＬＯＶＩＡ　ｓｍａｒｔ　きらら　会計　Ｖ１．１　支払管理オプション　ＢＰ移行",{"$f":"CONCATENATE(G163,I163)","v":"ＧＬＯＶＩＡ　ｓｍａｒｔ　きらら　会計　Ｖ１．１　支払管理オプション　ＢＰ移行"},180000,"一括",null,"2015-12-24",null,0.8,{"$f":"ROUNDDOWN(K163*P163,-1)","v":144000}]
[null,"PKG","人事給与","きらら人事給与V1.1","基本","一般公開",null,"A296CVKT","ＧＬＯＶＩＡ　ｓｍａｒｔ　きらら　人事給与　∨１．１　メディアパック",{"$f":"CONCATENATE(G164,I164)","v":"ＧＬＯＶＩＡ　ｓｍａｒｔ　きらら　人事給与　∨１．１　メディアパック"},5000,"一括",null,"2014-01-31",null,0.8,{"$f":"ROUNDDOWN(K164*P164,-1)","v":4000}]
[null,"PKG","人事給与",null,"基本","一般公開",null,"A2969VKU","ＧＬＯＶＩＡ　ｓｍａｒｔ　きらら　人事給与　∨１．１　基本ライセンス（社員５０名付）","ＧＬＯＶＩＡ　ｓｍａｒｔ　きらら　人事給与　∨１．１　基本ライセンス（社員５０名付）",300000,"一括",null,"2014-01-31",null,0.8,{"$f":"ROUNDDOWN(K165*P165,-1)","v":240000}]
[null,"PKG","人事給与",null,"オプション","一般公開",null,"A2969VKV","ＧＬＯＶＩＡ　ｓｍａｒｔ　きらら　人事給与　∨１．１　社員追加５０名ライセンス",{"$f":"CONCATENATE(G166,I166)","v":"ＧＬＯＶＩＡ　ｓｍａｒｔ　きらら　人事給与　∨１．１　社員追加５０名ライセンス"},300000,"一括",null,"2014-01-31",null,0.8,{"$f":"ROUNDDOWN(K166*P166,-1)","v":240000}]
[null,"PKG-ME&S","人事給与",null,"基本","一般公開",null,"A2960VKUM1","ＧＬＯＶＩＡ　ｓｍａｒｔ　きらら　人事給与　∨１．１　基本ライセンス（社員５０名付）　プログラムサポート",{"$f":"CONCATENATE(G167,I167)","v":"ＧＬＯＶＩＡ　ｓｍａｒｔ　きらら　人事給与　∨１．１　基本ライセンス（社員５０名付）　プログラムサポート"},45000,"年額",null,"2014-01-31",{"$f":"K167*0.9","v":40500},0.63,{"$f":"ROUNDDOWN(K167*(0.9*P167),-1)","v":25510}]
[null,"PKG-ME&S","人事給与",null,"オプション","一般公開",null,"A2960VKVM1","ＧＬＯＶＩＡ　ｓｍａｒｔ　きらら　人事給与　∨１．１　社員追加５０名ライセンス　プログラムサポート",{"$f":"CONCATENATE(G168,I168)","v":"ＧＬＯＶＩＡ　ｓｍａｒｔ　きらら　人事給与　∨１．１　社員追加５０名ライセンス　プログラムサポート"},45000,"年額",null,"2014-01-31",{"$f":"K168*0.9","v":40500},0.63,{"$f":"ROUNDDOWN(K168*(0.9*P168),-1)","v":25510}]
[null,"PKG-ME&S","人事給与",null,"基本","一般公開",null,"A2960VKUM","ＧＬＯＶＩＡ　ｓｍａｒｔ　きらら　人事給与　∨１．１　基本ライセンス（社員５０名付）　プログラムサポート",{"$f":"CONCATENATE(G169,I169)","v":"ＧＬＯＶＩＡ　ｓｍａｒｔ　きらら　人事給与　∨１．１　基本ライセンス（社員５０名付）　プログラムサポート"},4500,"月額",null,"2014-01-31",null,0.63,{"$f":"ROUNDDOWN(K169*P169,-1)","v":2830}]
[null,"PKG-ME&S","人事給与",null,"オプション","一般公開",null,"A2960VKVM","ＧＬＯＶＩＡ　ｓｍａｒｔ　きらら　人事給与　∨１．１　社員追加５０名ライセンス　プログラムサポート","ＧＬＯＶＩＡ　ｓｍａｒｔ　きらら　人事給与　∨１．１　社員追加５０名ライセンス　プログラムサポート",4500,"月額",null,"2014-01-31",null,0.63,2830]
[null,"PKG","人事給与","きらら人事給与V1.1 BP移行","基本","非公開",null,"A2969VKW","ＧＬＯＶＩＡ　ｓｍａｒｔ　きらら　人事給与　∨１．１　基本ライセンス（社員５０名付）　ＢＰ移行",{"$f":"CONCATENATE(G171,I171)","v":"ＧＬＯＶＩＡ　ｓｍａｒｔ　きらら　人事給与　∨１．１　基本ライセンス（社員５０名付）　ＢＰ移行"},150000,"一括",null,"2014-01-31",null,0.63,94500]
[null,"PKG","人事給与",null,"オプション","非公開",null,"A2969VKX","ＧＬＯＶＩＡ　ｓｍａｒｔ　きらら　人事給与　∨１．１　社員追加５０名ライセンス　ＢＰ移行",{"$f":"CONCATENATE(G172,I172)","v":"ＧＬＯＶＩＡ　ｓｍａｒｔ　きらら　人事給与　∨１．１　社員追加５０名ライセンス　ＢＰ移行"},150000,"一括",null,"2014-01-31",null,0.63,94500]
[null,"PKG","販売","通常商品","オプション","一般公開",null,"A2969XF7","ＧＬＯＶＩＡ　ｓｍａｒｔ　きらら　販売　Ｖ１　スタンダード　追加１００ユーザライセンス",{"$f":"CONCATENATE(G173,I173)","v":"ＧＬＯＶＩＡ　ｓｍａｒｔ　きらら　販売　Ｖ１　スタンダード　追加１００ユーザライセンス"},4500000,"一括",null,"2014-12-24",null,0.63,2835000]
[null,"PKG","販売","通常商品","オプション","一般公開",null,"A2969XF8","ＧＬＯＶＩＡ　ｓｍａｒｔ　きらら　販売　Ｖ１　スタンダード　追加２５０ユーザライセンス",{"$f":"CONCATENATE(G174,I174)","v":"ＧＬＯＶＩＡ　ｓｍａｒｔ　きらら　販売　Ｖ１　スタンダード　追加２５０ユーザライセンス"},8125000,"一括",null,"2014-12-24",null,0.63,5118750]
[null,"PKG","販売","通常商品","オプション","一般公開",null,"A296CXF9","ＧＬＯＶＩＡ　ｓｍａｒｔ　きらら　販売　Ｖ１　スタンダード　開発検証サーバライセンス（５ユーザライセンス付き）",{"$f":"CONCATENATE(G175,I175)","v":"ＧＬＯＶＩＡ　ｓｍａｒｔ　きらら　販売　Ｖ１　スタンダード　開発検証サーバライセンス（５ユーザライセンス付き）"},750000,"一括",null,"2014-12-24",null,0.63,472500]
[null,"PKG","販売","通常商品","オプション","一般公開",null,"A2969XFA","ＧＬＯＶＩＡ　ｓｍａｒｔ　きらら　販売　Ｖ１　スタンダード　待機サーバライセンス　",{"$f":"CONCATENATE(G176,I176)","v":"ＧＬＯＶＩＡ　ｓｍａｒｔ　きらら　販売　Ｖ１　スタンダード　待機サーバライセンス　"},750000,"一括",null,"2014-12-24",null,0.63,472500]
[null,"PKG-ME&S","販売","通常商品","オプション","一般公開",null,"A2960XF7L1","ＧＬＯＶＩＡ　ｓｍａｒｔ　きらら　販売　Ｖ１　スタンダード　追加１００ユーザライセンス　レベルアップサービス",{"$f":"CONCATENATE(G177,I177)","v":"ＧＬＯＶＩＡ　ｓｍａｒｔ　きらら　販売　Ｖ１　スタンダード　追加１００ユーザライセンス　レベルアップサービス"},67500,"月額",null,"2014-12-24",null,0.63,42520]
[null,"PKG-ME&S","販売","通常商品","オプション","一般公開",null,"A2960XF8L1","ＧＬＯＶＩＡ　ｓｍａｒｔ　きらら　販売　Ｖ１　スタンダード　追加２５０ユーザライセンス　レベルアップサービス",{"$f":"CONCATENATE(G178,I178)","v":"ＧＬＯＶＩＡ　ｓｍａｒｔ　きらら　販売　Ｖ１　スタンダード　追加２５０ユーザライセンス　レベルアップサービス"},121870,"月額",null,"2014-12-24",null,0.63,76770]
[null,"PKG-ME&S","販売","通常商品","オプション","一般公開",null,"A2960XF9L1","ＧＬＯＶＩＡ　ｓｍａｒｔ　きらら　販売　Ｖ１　スタンダード　開発検証サーバライセンス（５ユーザライセンス付き）　レベルアップサービス","ＧＬＯＶＩＡ　ｓｍａｒｔ　きらら　販売　Ｖ１　スタンダード　開発検証サーバライセンス（５ユーザライセンス付き）　レベルアップサービス",11250,"月額",null,"2014-12-24",null,0.63,7080]
[null,"PKG-ME&S","販売","通常商品","オプション","一般公開",null,"A2960XFAL1","ＧＬＯＶＩＡ　ｓｍａｒｔ　きらら　販売　Ｖ１　スタンダード　待機サーバライセンス　レベルアップサービス","ＧＬＯＶＩＡ　ｓｍａｒｔ　きらら　販売　Ｖ１　スタンダード　待機サーバライセンス　レベルアップサービス",11250,"月額",null,"2014-12-24",null,0.63,7080]
[null,"PKG-ME&S","販売","通常商品","オプション","一般公開",null,"A2960XF7L","ＧＬＯＶＩＡ　ｓｍａｒｔ　きらら　販売　Ｖ１　スタンダード　追加１００ユーザライセンス　レベルアップサービス","ＧＬＯＶＩＡ　ｓｍａｒｔ　きらら　販売　Ｖ１　スタンダード　追加１００ユーザライセンス　レベルアップサービス",675000,"年額",null,"2014-12-24",null,0.75,{"$f":"ROUNDDOWN(K181*P181,-1)","v":506250}]
[null,"PKG-ME&S","販売","通常商品","オプション","一般公開",null,"A2960XF8L","ＧＬＯＶＩＡ　ｓｍａｒｔ　きらら　販売　Ｖ１　スタンダード　追加２５０ユーザライセンス　レベルアップサービス","ＧＬＯＶＩＡ　ｓｍａｒｔ　きらら　販売　Ｖ１　スタンダード　追加２５０ユーザライセンス　レベルアップサービス",1218700,"年額",null,"2014-12-24",null,0.75,{"$f":"ROUNDDOWN(K182*P182,-1)","v":914020}]
[null,"PKG-ME&S","販売","通常商品","オプション","一般公開",null,"A2960XF9L","ＧＬＯＶＩＡ　ｓｍａｒｔ　きらら　販売　Ｖ１　スタンダード　開発検証サーバライセンス（５ユーザライセンス付き）　レベルアップサービス","ＧＬＯＶＩＡ　ｓｍａｒｔ　きらら　販売　Ｖ１　スタンダード　開発検証サーバライセンス（５ユーザライセンス付き）　レベルアップサービス",112500,"年額",null,"2014-12-24",null,0.75,84370]
[null,"PKG-ME&S","販売","通常商品","オプション","一般公開",null,"A2960XFAL","ＧＬＯＶＩＡ　ｓｍａｒｔ　きらら　販売　Ｖ１　スタンダード　待機サーバライセンス　レベルアップサービス","ＧＬＯＶＩＡ　ｓｍａｒｔ　きらら　販売　Ｖ１　スタンダード　待機サーバライセンス　レベルアップサービス",112500,"年額",null,"2014-12-24",null,0.75,84370]
[null,"SaaS","会計","らくらくきらら会計","基本","一般公開",null,"SVS011750","ＧＬＯＶＩＡ　ｓｍａｒｔ　らくらくきらら　会計　基本サービス","ＧＬＯＶＩＡ　ｓｍａｒｔ　らくらくきらら　会計　基本サービス",10000,"月額","すぐに使える機能に限定して、きらら会計を提供します\n１会社、１利用者ＩＤ、ＱＡサービスが含まれています","2015-09-01",null,0.75,7500]
[null,"SaaS","会計","らくらくきらら会計","オプション","一般公開",null,"SVS011751","ＧＬＯＶＩＡ　ｓｍａｒｔ　らくらくきらら　会計　利用者追加（１ＩＤ）オプションサービス","ＧＬＯＶＩＡ　ｓｍａｒｔ　らくらくきらら　会計　利用者追加（１ＩＤ）オプションサービス",3000,"月額","ＧＬＯＶＩＡ　ｓｍａｒｔ　らくらくきらら会計へ利用者ＩＤ（１ＩＤ）追加オプションを提供します。","2015-09-01",null,0.75,2250]
[null,"SaaS","会計","らくらくきらら会計","オプション","一般公開",null,"SVS011752","ＧＬＯＶＩＡ　ｓｍａｒｔ　らくらくきらら　会計　会社追加（１会社）オプションサービス","ＧＬＯＶＩＡ　ｓｍａｒｔ　らくらくきらら　会計　会社追加（１会社）オプションサービス",3000,"月額","ＧＬＯＶＩＡ　ｓｍａｒｔ　らくらくきらら会計へ会社（１会社）追加オプションを提供します。","2015-09-01",null,0.75,2250]
[null,"SaaS","会計","らくらくきらら会計","オプション","一般公開",null,"SVS011753","ＧＬＯＶＩＡ　ｓｍａｒｔ　らくらくきらら　会計　データ参照期間拡張（過去５会計年度）オプションサービス","ＧＬＯＶＩＡ　ｓｍａｒｔ　らくらくきらら　会計　データ参照期間拡張（過去５会計年度）オプションサービス",3000,"月額","ＧＬＯＶＩＡ　ｓｍａｒｔ　らくらくきらら会計で過年度データを５年まで保管できるオプションを提供します。","2015-09-01",null,0.75,2250]
[null,"SaaS","会計","らくらくきらら会計","オプション","一般公開",null,"SVS011754","ＧＬＯＶＩＡ　ｓｍａｒｔ　らくらくきらら　会計　データ参照期間拡張（過去７会計年度）オプションサービス","ＧＬＯＶＩＡ　ｓｍａｒｔ　らくらくきらら　会計　データ参照期間拡張（過去７会計年度）オプションサービス",5000,"月額","ＧＬＯＶＩＡ　ｓｍａｒｔ　らくらくきらら会計で過年度データを７年まで保管できるオプションを提供します。","2015-09-01",null,0.75,3750]
[null,"SaaS","会計","らくらくきらら会計","オプション","一般公開",null,"SVS011755","ＧＬＯＶＩＡ　ｓｍａｒｔ　らくらくきらら　会計　データ参照期間拡張（過去１０会計年度）オプションサービス","ＧＬＯＶＩＡ　ｓｍａｒｔ　らくらくきらら　会計　データ参照期間拡張（過去１０会計年度）オプションサービス",8000,"月額","ＧＬＯＶＩＡ　ｓｍａｒｔ　らくらくきらら会計で過年度データを１０年まで保管できるオプションを提供します。","2015-09-01",null,0.75,6000]
[null,"SaaS","会計","らくらくきらら会計","オプション","一般公開",null,"SVS011756","ＧＬＯＶＩＡ　ｓｍａｒｔ　らくらくきらら　会計　リモートスポット支援オプションサービス","ＧＬＯＶＩＡ　ｓｍａｒｔ　らくらくきらら　会計　リモートスポット支援オプションサービス",10000,"月額","ＧＬＯＶＩＡ　ｓｍａｒｔ　らくらくきらら会計でＱＡ対応をリモート画面を通して実施するオプションです。\n事前予約制で、年２回、２時間／回までの範囲で実施します。","2015-09-01",null,0.75,7500]
[null,"SaaS","給与","らくらくきらら給与","基本","一般公開",null,"SVS011850","ＧＬＯＶＩＡ　ｓｍａｒｔ　らくらくきらら　給与　基本サービス","ＧＬＯＶＩＡ　ｓｍａｒｔ　らくらくきらら　給与　基本サービス",10000,"月額","すぐに使える機能に限定して、きらら給与を提供します\n１会社、１利用者ＩＤ、従業員５０名、ＱＡサービスが含まれています","2015-09-01",null,0.75,7500]
[null,"SaaS","給与","らくらくきらら給与","オプション","一般公開",null,"SVS011851","ＧＬＯＶＩＡ　ｓｍａｒｔ　らくらくきらら　給与　利用者追加（１ＩＤ）オプションサービス","ＧＬＯＶＩＡ　ｓｍａｒｔ　らくらくきらら　給与　利用者追加（１ＩＤ）オプションサービス",2000,"月額","ＧＬＯＶＩＡ　ｓｍａｒｔ　らくらくきらら給与へ利用者ＩＤ（１ＩＤ）追加オプションを提供します。","2015-09-01",null,0.75,1500]
[null,"SaaS","給与","らくらくきらら給与","オプション","一般公開",null,"SVS011852","ＧＬＯＶＩＡ　ｓｍａｒｔ　らくらくきらら　給与　会社追加（１会社）オプションサービス","ＧＬＯＶＩＡ　ｓｍａｒｔ　らくらくきらら　給与　会社追加（１会社）オプションサービス",3000,"月額","ＧＬＯＶＩＡ　ｓｍａｒｔ　らくらくきらら給与へ会社（１会社）追加オプションを提供します。","2015-09-01",null,0.75,2250]
[null,"SaaS","給与","らくらくきらら給与","オプション","一般公開",null,"SVS011853","ＧＬＯＶＩＡ　ｓｍａｒｔ　らくらくきらら　給与　従業員追加（５０名）オプションサービス","ＧＬＯＶＩＡ　ｓｍａｒｔ　らくらくきらら　給与　従業員追加（５０名）オプションサービス",6000,"月額","ＧＬＯＶＩＡ　ｓｍａｒｔ　らくらくきらら給与へ従業員（５０名）追加オプションを提供します。","2015-09-01",null,0.75,4500]
[null,"SaaS","給与","らくらくきらら給与","オプション","一般公開",null,"SVS011854","ＧＬＯＶＩＡ　ｓｍａｒｔ　らくらくきらら　給与　データ参照期間拡張（過去５年）オプションサービス","ＧＬＯＶＩＡ　ｓｍａｒｔ　らくらくきらら　給与　データ参照期間拡張（過去５年）オプションサービス",3000,"月額","ＧＬＯＶＩＡ　ｓｍａｒｔ　らくらくきらら給与で過年度データを５年まで保管できるオプションを提供します。","2015-09-01",null,0.75,2250]
[null,"SaaS","給与","らくらくきらら給与","オプション","一般公開",null,"SVS011855","ＧＬＯＶＩＡ　ｓｍａｒｔ　らくらくきらら　給与　データ参照期間拡張（過去７年）オプションサービス","ＧＬＯＶＩＡ　ｓｍａｒｔ　らくらくきらら　給与　データ参照期間拡張（過去７年）オプションサービス",5000,"月額","ＧＬＯＶＩＡ　ｓｍａｒｔ　らくらくきらら給与で過年度データを７年まで保管できるオプションを提供します。","2015-09-01",null,0.75,3750]
[null,"SaaS","給与","らくらくきらら給与","オプション","一般公開",null,"SVS011856","ＧＬＯＶＩＡ　ｓｍａｒｔ　らくらくきらら　給与　データ参照期間拡張（過去１０年）オプションサービス","ＧＬＯＶＩＡ　ｓｍａｒｔ　らくらくきらら　給与　データ参照期間拡張（過去１０年）オプションサービス",8000,"月額","ＧＬＯＶＩＡ　ｓｍａｒｔ　らくらくきらら給与で過年度データを１０年まで保管できるオプションを提供します。","2015-09-01",null,0.75,6000]
[null,"SaaS","給与","らくらくきらら給与","オプション","一般公開",null,"SVS011857","ＧＬＯＶＩＡ　ｓｍａｒｔ　らくらくきらら　給与　リモートスポット支援オプションサービス","ＧＬＯＶＩＡ　ｓｍａｒｔ　らくらくきらら　給与　リモートスポット支援オプションサービス",10000,"月額","ＧＬＯＶＩＡ　ｓｍａｒｔ　らくらくきらら給与でＱＡ対応をリモート画面を通して実施するオプションです。\n事前予約制で、年２回、２時間／回までの範囲で実施します。","2015-09-01",null,0.75,7500]
[null,"SaaS","会計","新プラン　２０１５","基本","一般公開",null,"SVS011700","ＧＬＯＶＩＡ　ｓｍａｒｔ　きらら　会計　基本サービス","ＧＬＯＶＩＡ　ｓｍａｒｔ　きらら　会計　基本サービス",12000,"月額","ＧＬＯＶＩＡ　ｓｍａｒｔ　きらら会計　を提供します\n１会社、１利用者ＩＤ、ＱＡサービスが含まれています","2015-09-01",null,0.75,9000]
[null,"SaaS","会計","新プラン　２０１５","オプション","一般公開",null,"SVS011701","ＧＬＯＶＩＡ　ｓｍａｒｔ　きらら　会計　利用者追加（１ＩＤ）オプションサービス","ＧＬＯＶＩＡ　ｓｍａｒｔ　きらら　会計　利用者追加（１ＩＤ）オプションサービス",8000,"月額","ＧＬＯＶＩＡ　ｓｍａｒｔ　きらら会計　へ利用者ＩＤ（１ＩＤ）追加オプションを提供します。","2015-09-01",null,0.75,6000]
[null,"SaaS","会計","新プラン　２０１５","オプション","一般公開",null,"SVS011702","ＧＬＯＶＩＡ　ｓｍａｒｔ　きらら　会計　会社追加（１会社）オプションサービス","ＧＬＯＶＩＡ　ｓｍａｒｔ　きらら　会計　会社追加（１会社）オプションサービス",3000,"月額","ＧＬＯＶＩＡ　ｓｍａｒｔ　きらら会計　へ会社（１会社）追加オプションを提供します。","2015-09-01",null,0.75,2250]
[null,"SaaS","会計","新プラン　２０１５","オプション","一般公開",null,"SVS011708","ＧＬＯＶＩＡ　ｓｍａｒｔ　きらら　会計　支払管理オプションサービス","ＧＬＯＶＩＡ　ｓｍａｒｔ　きらら　会計　支払管理オプションサービス",10000,"月額","ＧＬＯＶＩＡ　ｓｍａｒｔ　きらら会計　で支払管理が行えるオプションを提供します。","2015-12-01",null,0.75,7500]
[null,"SaaS","会計","新プラン　２０１５","オプション","一般公開",null,"SVS011703","ＧＬＯＶＩＡ　ｓｍａｒｔ　きらら　会計　手形管理オプションサービス","ＧＬＯＶＩＡ　ｓｍａｒｔ　きらら　会計　手形管理オプションサービス",10000,"月額","ＧＬＯＶＩＡ　ｓｍａｒｔ　きらら会計　で手形管理が行えるオプションを提供します。","2015-09-01",null,0.75,7500]
[null,"SaaS","会計","新プラン　２０１５","オプション","一般公開",null,"SVS011704","ＧＬＯＶＩＡ　ｓｍａｒｔ　きらら　会計　データ参照期間拡張（過去５会計年度）オプションサービス","ＧＬＯＶＩＡ　ｓｍａｒｔ　きらら　会計　データ参照期間拡張（過去５会計年度）オプションサービス",6000,"月額","ＧＬＯＶＩＡ　ｓｍａｒｔ　きらら会計　で過年度データを５年まで保管できるオプションを提供します。","2015-09-01",null,0.75,4500]
[null,"SaaS","会計","新プラン　２０１５","オプション","一般公開",null,"SVS011705","ＧＬＯＶＩＡ　ｓｍａｒｔ　きらら　会計　データ参照期間拡張（過去７会計年度）オプションサービス","ＧＬＯＶＩＡ　ｓｍａｒｔ　きらら　会計　データ参照期間拡張（過去７会計年度）オプションサービス",9000,"月額","ＧＬＯＶＩＡ　ｓｍａｒｔ　きらら会計　で過年度データを７年まで保管できるオプションを提供します。","2015-09-01",null,0.75,6750]
[null,"SaaS","会計","新プラン　２０１５","オプション","一般公開",null,"SVS011706","ＧＬＯＶＩＡ　ｓｍａｒｔ　きらら　会計　データ参照期間拡張（過去１０会計年度）オプションサービス","ＧＬＯＶＩＡ　ｓｍａｒｔ　きらら　会計　データ参照期間拡張（過去１０会計年度）オプションサービス",13000,"月額","ＧＬＯＶＩＡ　ｓｍａｒｔ　きらら会計　で過年度データを１０年まで保管できるオプションを提供します。","2015-09-01",null,0.75,9750]
[null,"SaaS","会計","新プラン　２０１５","オプション","一般公開",null,"SVS011707","ＧＬＯＶＩＡ　ｓｍａｒｔ　きらら　会計　リモートスポット支援オプションサービス","ＧＬＯＶＩＡ　ｓｍａｒｔ　きらら　会計　リモートスポット支援オプションサービス",10000,"月額","ＧＬＯＶＩＡ　ｓｍａｒｔ　きらら会計　でＱＡ対応をリモート画面を通して実施するオプションです。\n事前予約制で、年２回、２時間／回までの範囲で実施します。","2015-09-01",null,0.75,7500]
[null,"SaaS","人事給与","新プラン　２０１５","基本","一般公開",null,"SVS011800","ＧＬＯＶＩＡ　ｓｍａｒｔ　きらら　人事給与　基本サービス","ＧＬＯＶＩＡ　ｓｍａｒｔ　きらら　人事給与　基本サービス",12000,"月額","ＧＬＯＶＩＡ　ｓｍａｒｔ　きらら人事給与　を提供します\n１会社、１利用者ＩＤ、従業員５０名、ＱＡサービスが含まれています","2015-09-01",null,0.75,9000]
[null,"SaaS","人事給与","新プラン　２０１５","オプション","一般公開",null,"SVS011801","ＧＬＯＶＩＡ　ｓｍａｒｔ　きらら　人事給与　利用者追加（１ＩＤ）オプションサービス",{"$f":"CONCATENATE(G210,I210)","v":"ＧＬＯＶＩＡ　ｓｍａｒｔ　きらら　人事給与　利用者追加（１ＩＤ）オプションサービス"},4000,"月額","ＧＬＯＶＩＡ　ｓｍａｒｔ　きらら人事給与　へ利用者ＩＤ（１ＩＤ）追加オプションを提供します。","2015-09-01",null,0.75,3000]
[null,"SaaS","人事給与","新プラン　２０１５","オプション","一般公開",null,"SVS011802","ＧＬＯＶＩＡ　ｓｍａｒｔ　きらら　人事給与　会社追加（１会社）オプションサービス","ＧＬＯＶＩＡ　ｓｍａｒｔ　きらら　人事給与　会社追加（１会社）オプションサービス",3000,"月額","ＧＬＯＶＩＡ　ｓｍａｒｔ　きらら人事給与　へ会社（１会社）追加オプションを提供します。","2015-09-01",null,0.75,2250]
[null,"SaaS","人事給与","新プラン　２０１５","オプション","一般公開",null,"SVS011803","ＧＬＯＶＩＡ　ｓｍａｒｔ　きらら　人事給与　従業員追加（５０名）オプションサービス","ＧＬＯＶＩＡ　ｓｍａｒｔ　きらら　人事給与　従業員追加（５０名）オプションサービス",10000,"月額","ＧＬＯＶＩＡ　ｓｍａｒｔ　きらら人事給与　へ従業員（５０名）追加オプションを提供します。","2015-09-01",null,0.75,7500]
[null,"SaaS","人事給与","新プラン　２０１５","オプション","一般公開",null,"SVS011804","ＧＬＯＶＩＡ　ｓｍａｒｔ　きらら　人事給与　従業員追加（１００名）オプションサービス","ＧＬＯＶＩＡ　ｓｍａｒｔ　きらら　人事給与　従業員追加（１００名）オプションサービス",17000,"月額","ＧＬＯＶＩＡ　ｓｍａｒｔ　きらら人事給与　へ従業員（１００名）追加オプションを提供します。","2015-09-01",null,0.75,12750]
[null,"SaaS","人事給与","新プラン　２０１５","オプション","一般公開",null,"SVS011805","ＧＬＯＶＩＡ　ｓｍａｒｔ　きらら　人事給与　従業員追加（２００名）オプションサービス","ＧＬＯＶＩＡ　ｓｍａｒｔ　きらら　人事給与　従業員追加（２００名）オプションサービス",28000,"月額","ＧＬＯＶＩＡ　ｓｍａｒｔ　きらら人事給与　へ従業員（２００名）追加オプションを提供します。","2015-09-01",null,0.75,21000]
[null,"SaaS","人事給与","新プラン　２０１５","オプション","一般公開",null,"SVS011810","ＧＬＯＶＩＡ　ｓｍａｒｔ　きらら　人事給与　従業員追加（５００名）オプションサービス","ＧＬＯＶＩＡ　ｓｍａｒｔ　きらら　人事給与　従業員追加（５００名）オプションサービス",55000,"月額","ＧＬＯＶＩＡ　ｓｍａｒｔ　きらら人事給与　へ従業員（５００名）追加オプションを提供します。","2015-09-01",null,0.75,41250]
[null,"SaaS","人事給与","新プラン　２０１５","オプション","一般公開",null,"SVS011806","ＧＬＯＶＩＡ　ｓｍａｒｔ　きらら　人事給与　データ参照期間拡張（過去５年）オプションサービス","ＧＬＯＶＩＡ　ｓｍａｒｔ　きらら　人事給与　データ参照期間拡張（過去５年）オプションサービス",6000,"月額","ＧＬＯＶＩＡ　ｓｍａｒｔ　きらら人事給与　で過年度データを５年まで保管できるオプションを提供します。","2015-09-01"]
[null,"SaaS","人事給与","新プラン　２０１５","オプション","一般公開",null,"SVS011807","ＧＬＯＶＩＡ　ｓｍａｒｔ　きらら　人事給与　データ参照期間拡張（過去７年）オプションサービス","ＧＬＯＶＩＡ　ｓｍａｒｔ　きらら　人事給与　データ参照期間拡張（過去７年）オプションサービス",9000,"月額","ＧＬＯＶＩＡ　ｓｍａｒｔ　きらら人事給与　で過年度データを７年まで保管できるオプションを提供します。","2015-09-01"]
[null,"SaaS","人事給与","新プラン　２０１５","オプション","一般公開",null,"SVS011808","ＧＬＯＶＩＡ　ｓｍａｒｔ　きらら　人事給与　データ参照期間拡張（過去１０年）オプションサービス","ＧＬＯＶＩＡ　ｓｍａｒｔ　きらら　人事給与　データ参照期間拡張（過去１０年）オプションサービス",13000,"月額","ＧＬＯＶＩＡ　ｓｍａｒｔ　きらら人事給与　で過年度データを１０年まで保管できるオプションを提供します。","2015-09-01"]
[null,"SaaS","人事給与","新プラン　２０１５","オプション","一般公開",null,"SVS011809","ＧＬＯＶＩＡ　ｓｍａｒｔ　きらら　人事給与　リモートスポット支援オプションサービス","ＧＬＯＶＩＡ　ｓｍａｒｔ　きらら　人事給与　リモートスポット支援オプションサービス",10000,"月額","ＧＬＯＶＩＡ　ｓｍａｒｔ　きらら人事給与　でＱＡ対応をリモート画面を通して実施するオプションです。\n事前予約制で、年２回、２時間／回までの範囲で実施します。","2015-09-01"]
[null,"SaaS","会計","きらら会計V2","基本","一般公開",null,"SVS013800","ＧＬＯＶＩＡ　きらら　会計　基本サービス",{"$f":"CONCATENATE(G220,I220)","v":"ＧＬＯＶＩＡ　きらら　会計　基本サービス"},15000,"月額","ＧＬＯＶＩＡ　きらら　会計　を提供します\n１会社、１利用者ＩＤ、ＱＡサービスが含まれています","2016-06-15",null,0.75,{"$f":"ROUNDDOWN(K220*P220,-1)","v":11250}]
[null,"SaaS","会計","きらら会計V2","オプション","一般公開",null,"SVS013801","ＧＬＯＶＩＡ　きらら　会計　利用者追加（１ＩＤ）オプションサービス",{"$f":"CONCATENATE(G221,I221)","v":"ＧＬＯＶＩＡ　きらら　会計　利用者追加（１ＩＤ）オプションサービス"},10000,"月額","ＧＬＯＶＩＡ　きらら　会計　へ利用者ＩＤ（１ＩＤ）追加オプションを提供します。","2016-06-15",null,0.75,7500]
[null,"SaaS","会計","きらら会計V2","オプション","一般公開",null,"SVS013802","ＧＬＯＶＩＡ　きらら　会計　会社追加（１会社）オプションサービス","ＧＬＯＶＩＡ　きらら　会計　会社追加（１会社）オプションサービス",5000,"月額","ＧＬＯＶＩＡ　きらら　会計　へ会社（１会社）追加オプションを提供します。","2016-06-15",null,0.75,3750]
[null,"SaaS","会計","きらら会計V2","オプション","一般公開",null,"SVS013803","ＧＬＯＶＩＡ　きらら　会計　手形管理オプションサービス","ＧＬＯＶＩＡ　きらら　会計　手形管理オプションサービス",11000,"月額","ＧＬＯＶＩＡ　きらら　会計　で手形管理が行えるオプションを提供します。","2016-06-15",null,0.75,8250]
[null,"SaaS","会計","きらら会計V2","オプション","一般公開",null,"SVS013804","ＧＬＯＶＩＡ　きらら　会計　データ参照期間拡張（過去５会計年度）オプションサービス","ＧＬＯＶＩＡ　きらら　会計　データ参照期間拡張（過去５会計年度）オプションサービス",7000,"月額","ＧＬＯＶＩＡ　きらら　会計　で過年度データを５年まで保管できるオプションを提供します。","2016-06-15",null,0.75,5250]
[null,"SaaS","会計","きらら会計V2","オプション","一般公開",null,"SVS013805","ＧＬＯＶＩＡ　きらら　会計　データ参照期間拡張（過去７会計年度）オプションサービス","ＧＬＯＶＩＡ　きらら　会計　データ参照期間拡張（過去７会計年度）オプションサービス",10000,"月額","ＧＬＯＶＩＡ　きらら　会計　で過年度データを７年まで保管できるオプションを提供します。","2016-06-15",null,0.75,7500]
[null,"SaaS","会計","きらら会計V2","オプション","一般公開",null,"SVS013806","ＧＬＯＶＩＡ　きらら　会計　データ参照期間拡張（過去１０会計年度）オプションサービス","ＧＬＯＶＩＡ　きらら　会計　データ参照期間拡張（過去１０会計年度）オプションサービス",14000,"月額","ＧＬＯＶＩＡ　きらら　会計　で過年度データを１０年まで保管できるオプションを提供します。","2016-06-15",null,0.75,10500]
[null,"SaaS","会計","きらら会計V2","オプション","一般公開",null,"SVS013807","ＧＬＯＶＩＡ　きらら　会計　リモートスポット支援オプションサービス","ＧＬＯＶＩＡ　きらら　会計　リモートスポット支援オプションサービス",11000,"月額","ＧＬＯＶＩＡ　きらら　会計　でＱＡ対応をリモート画面を通して実施するオプションです。\n事前予約制で、年２回、２時間／回までの範囲で実施します。","2016-06-15",null,0.75,8250]
[null,"SaaS","人事給与","きらら人事給与V2","基本","一般公開",null,"SVS014000","ＧＬＯＶＩＡ　きらら　人事給与　基本サービス","ＧＬＯＶＩＡ　きらら　人事給与　基本サービス",12000,"月額","ＧＬＯＶＩＡ　きらら　人事給与　を提供します\n１会社、１利用者ＩＤ、従業員５０名、ＱＡサービスが含まれています","2016-06-15",null,0.75,9000]
[null,"SaaS","人事給与","きらら人事給与V2","オプション","一般公開",null,"SVS014001","ＧＬＯＶＩＡ　きらら　人事給与　利用者追加（１ＩＤ）オプションサービス","ＧＬＯＶＩＡ　きらら　人事給与　利用者追加（１ＩＤ）オプションサービス",4000,"月額","ＧＬＯＶＩＡ　きらら　人事給与　へ利用者ＩＤ（１ＩＤ）追加オプションを提供します。","2016-06-15",null,0.75,3000]
[null,"SaaS","人事給与","きらら人事給与V2","オプション","一般公開",null,"SVS014002","ＧＬＯＶＩＡ　きらら　人事給与　会社追加（１会社）オプションサービス","ＧＬＯＶＩＡ　きらら　人事給与　会社追加（１会社）オプションサービス",5000,"月額","ＧＬＯＶＩＡ　きらら　人事給与　へ会社（１会社）追加オプションを提供します。","2016-06-15",null,0.75,3750]
[null,"SaaS","人事給与","きらら人事給与V2","オプション","一般公開",null,"SVS014003","ＧＬＯＶＩＡ　きらら　人事給与　従業員追加（５０名）オプションサービス","ＧＬＯＶＩＡ　きらら　人事給与　従業員追加（５０名）オプションサービス",8000,"月額","ＧＬＯＶＩＡ　きらら　人事給与　へ従業員（５０名）追加オプションを提供します。","2016-06-15",null,0.75,6000]
[null,"SaaS","人事給与","きらら人事給与V2","オプション","一般公開",null,"SVS014004","ＧＬＯＶＩＡ　きらら　人事給与　データ参照期間拡張（過去５年）オプションサービス","ＧＬＯＶＩＡ　きらら　人事給与　データ参照期間拡張（過去５年）オプションサービス",7000,"月額","ＧＬＯＶＩＡ　きらら　人事給与　で過年度データを５年まで保管できるオプションを提供します。","2016-06-15",null,0.75,5250]
[null,"SaaS","人事給与","きらら人事給与V2","オプション","一般公開",null,"SVS014005","ＧＬＯＶＩＡ　きらら　人事給与　データ参照期間拡張（過去７年）オプションサービス","ＧＬＯＶＩＡ　きらら　人事給与　データ参照期間拡張（過去７年）オプションサービス",10000,"月額","ＧＬＯＶＩＡ　きらら　人事給与　で過年度データを７年まで保管できるオプションを提供します。","2016-06-15",null,0.75,7500]
[null,"SaaS","人事給与","きらら人事給与V2","オプション","一般公開",null,"SVS014006","ＧＬＯＶＩＡ　きらら　人事給与　データ参照期間拡張（過去１０年）オプションサービス","ＧＬＯＶＩＡ　きらら　人事給与　データ参照期間拡張（過去１０年）オプションサービス",14000,"月額","ＧＬＯＶＩＡ　きらら　人事給与　で過年度データを１０年まで保管できるオプションを提供します。","2016-06-15",null,0.75,10500]
[null,"SaaS","人事給与","きらら人事給与V2","オプション","一般公開",null,"SVS014007","ＧＬＯＶＩＡ　きらら　人事給与　リモートスポット支援オプションサービス","ＧＬＯＶＩＡ　きらら　人事給与　リモートスポット支援オプションサービス",11000,"月額","ＧＬＯＶＩＡ　きらら　人事給与　でＱＡ対応をリモート画面を通して実施するオプションです。\n事前予約制で、年２回、２時間／回までの範囲で実施します。","2016-06-15",null,0.75,8250]
[null,"SaaS","会計","らくらくきらら会計","基本","一般公開",null,"SVS013900","ＧＬＯＶＩＡ　らくらくきらら　会計　基本サービス","ＧＬＯＶＩＡ　らくらくきらら　会計　基本サービス",10000,"月額","すぐに使える機能に限定して、きらら会計を提供します\n１会社、１利用者ＩＤ、ＱＡサービスが含まれています","2016-06-15",null,0.75,7500]
[null,"SaaS","会計","らくらくきらら会計","オプション","一般公開",null,"SVS013901","ＧＬＯＶＩＡ　らくらくきらら　会計　利用者追加（１ＩＤ）オプションサービス","ＧＬＯＶＩＡ　らくらくきらら　会計　利用者追加（１ＩＤ）オプションサービス",3000,"月額","ＧＬＯＶＩＡ　らくらくきらら　会計へ利用者ＩＤ（１ＩＤ）追加オプションを提供します。","2016-06-15",null,0.75,2250]
[null,"SaaS","会計","らくらくきらら会計","オプション","一般公開",null,"SVS013902","ＧＬＯＶＩＡ　らくらくきらら　会計　会社追加（１会社）オプションサービス","ＧＬＯＶＩＡ　らくらくきらら　会計　会社追加（１会社）オプションサービス",3000,"月額","ＧＬＯＶＩＡ　らくらくきらら　会計へ会社（１会社）追加オプションを提供します。","2016-06-15",null,0.75,2250]
[null,"SaaS","会計","らくらくきらら会計","オプション","一般公開",null,"SVS013903","ＧＬＯＶＩＡ　らくらくきらら　会計　データ参照期間拡張（過去５会計年度）オプションサービス","ＧＬＯＶＩＡ　らくらくきらら　会計　データ参照期間拡張（過去５会計年度）オプションサービス",3000,"月額","ＧＬＯＶＩＡ　らくらくきらら　会計で過年度データを５年まで保管できるオプションを提供します。","2016-06-15",null,0.75,2250]
[null,"SaaS","会計","らくらくきらら会計","オプション","一般公開",null,"SVS013904","ＧＬＯＶＩＡ　らくらくきらら　会計　データ参照期間拡張（過去７会計年度）オプションサービス","ＧＬＯＶＩＡ　らくらくきらら　会計　データ参照期間拡張（過去７会計年度）オプションサービス",5000,"月額","ＧＬＯＶＩＡ　らくらくきらら　会計で過年度データを７年まで保管できるオプションを提供します。","2016-06-15",null,0.75,3750]
[null,"SaaS","会計","らくらくきらら会計","オプション","一般公開",null,"SVS013905","ＧＬＯＶＩＡ　らくらくきらら　会計　データ参照期間拡張（過去１０会計年度）オプションサービス","ＧＬＯＶＩＡ　らくらくきらら　会計　データ参照期間拡張（過去１０会計年度）オプションサービス",8000,"月額","ＧＬＯＶＩＡ　らくらくきらら　会計で過年度データを１０年まで保管できるオプションを提供します。","2016-06-15",null,0.75,6000]
[null,"SaaS","会計","らくらくきらら会計","オプション","一般公開",null,"SVS013906","ＧＬＯＶＩＡ　らくらくきらら　会計　リモートスポット支援オプションサービス","ＧＬＯＶＩＡ　らくらくきらら　会計　リモートスポット支援オプションサービス",10000,"月額","ＧＬＯＶＩＡ　らくらくきらら　会計でＱＡ対応をリモート画面を通して実施するオプションです。\n事前予約制で、年２回、２時間／回までの範囲で実施します。","2016-06-15",null,0.75,7500]
[null,"SaaS","給与","らくらくきらら給与","基本","一般公開",null,"SVS014100","ＧＬＯＶＩＡ　らくらくきらら　給与　基本サービス","ＧＬＯＶＩＡ　らくらくきらら　給与　基本サービス",10000,"月額","すぐに使える機能に限定して、きらら給与を提供します\n１会社、１利用者ＩＤ、従業員５０名、ＱＡサービスが含まれています","2016-06-15",null,0.75,7500]
[null,"SaaS","給与","らくらくきらら給与","オプション","一般公開",null,"SVS014101","ＧＬＯＶＩＡ　らくらくきらら　給与　利用者追加（１ＩＤ）オプションサービス","ＧＬＯＶＩＡ　らくらくきらら　給与　利用者追加（１ＩＤ）オプションサービス",2000,"月額","ＧＬＯＶＩＡ　らくらくきらら　給与へ利用者ＩＤ（１ＩＤ）追加オプションを提供します。","2016-06-15",null,0.75,1500]
[null,"SaaS","給与","らくらくきらら給与","オプション","一般公開",null,"SVS014102","ＧＬＯＶＩＡ　らくらくきらら　給与　会社追加（１会社）オプションサービス","ＧＬＯＶＩＡ　らくらくきらら　給与　会社追加（１会社）オプションサービス",3000,"月額","ＧＬＯＶＩＡ　らくらくきらら　給与へ会社（１会社）追加オプションを提供します。","2016-06-15",null,0.75,2250]
[null,"SaaS","給与","らくらくきらら給与","オプション","一般公開",null,"SVS014103","ＧＬＯＶＩＡ　らくらくきらら　給与　従業員追加（５０名）オプションサービス","ＧＬＯＶＩＡ　らくらくきらら　給与　従業員追加（５０名）オプションサービス",6000,"月額","ＧＬＯＶＩＡ　らくらくきらら　給与へ従業員（５０名）追加オプションを提供します。","2016-06-15",null,0.75,4500]
[null,"SaaS","給与","らくらくきらら給与","オプション","一般公開",null,"SVS014104","ＧＬＯＶＩＡ　らくらくきらら　給与　データ参照期間拡張（過去５年）オプションサービス","ＧＬＯＶＩＡ　らくらくきらら　給与　データ参照期間拡張（過去５年）オプションサービス",3000,"月額","ＧＬＯＶＩＡ　らくらくきらら　給与で過年度データを５年まで保管できるオプションを提供します。","2016-06-15",null,0.75,2250]
[null,"SaaS","給与","らくらくきらら給与","オプション","一般公開",null,"SVS014105","ＧＬＯＶＩＡ　らくらくきらら　給与　データ参照期間拡張（過去７年）オプションサービス","ＧＬＯＶＩＡ　らくらくきらら　給与　データ参照期間拡張（過去７年）オプションサービス",5000,"月額","ＧＬＯＶＩＡ　らくらくきらら　給与で過年度データを７年まで保管できるオプションを提供します。","2016-06-15",null,0.75,3750]
[null,"SaaS","給与","らくらくきらら給与","オプション","一般公開",null,"SVS014106","ＧＬＯＶＩＡ　らくらくきらら　給与　データ参照期間拡張（過去１０年）オプションサービス","ＧＬＯＶＩＡ　らくらくきらら　給与　データ参照期間拡張（過去１０年）オプションサービス",8000,"月額","ＧＬＯＶＩＡ　らくらくきらら　給与で過年度データを１０年まで保管できるオプションを提供します。","2016-06-15",null,0.75,6000]
[null,"SaaS","給与","らくらくきらら給与","オプション","一般公開",null,"SVS014107","ＧＬＯＶＩＡ　らくらくきらら　給与　リモートスポット支援オプションサービス","ＧＬＯＶＩＡ　らくらくきらら　給与　リモートスポット支援オプションサービス",10000,"月額","ＧＬＯＶＩＡ　らくらくきらら　給与でＱＡ対応をリモート画面を通して実施するオプションです。\n事前予約制で、年２回、２時間／回までの範囲で実施します。","2016-06-15",null,0.75,7500]